{"text_format":"1","workbook":"xlsx","n_sheets":4,"sheets":["паспорт"," розрахунок","додаток","variablesList"],"not_rendered":{"charts":0,"images":0,"macros":1,"external_links":0,"defined_names":4,"comments":0,"pivot_tables":0},"unopened":[],"bounds":{"document_bytes":16777216,"sheet_cells":100000,"rows_first":2000,"rows_last":500,"rows_between":2000,"halvings":0,"cell_chars":16384,"cell_head_chars":4096},"cells_cut":0,"cells_raw":0,"read":"whole","date_system":"1900"}

{"sheet":"паспорт","index":0,"n_rows":52,"n_cols":31,"rows_kept":52,"cut":false,"hidden":false,"merged":[[0,7,0,21],[6,0,9,0],[8,11,9,11],[41,18,42,18],[41,19,42,19],[41,14,42,14],[42,7,42,13],[41,15,42,15],[41,16,42,16],[41,17,42,17],[8,9,9,9],[8,10,9,10],[41,0,41,13],[8,3,9,3],[7,14,7,22],[8,7,9,7],[6,1,7,12],[6,13,6,22],[8,8,9,8],[8,1,9,1],[8,2,9,2],[8,5,9,5],[8,6,9,6],[8,4,9,4],[48,1,48,26],[50,1,50,26],[8,12,9,12],[8,14,8,16],[8,17,8,19],[8,20,8,22],[43,20,43,27],[42,20,42,27],[41,20,41,27],[6,27,9,27],[6,26,9,26],[6,24,9,24],[6,23,9,23],[46,1,46,26],[6,25,9,25],[7,13,9,13]]}
["ПАТ \"УКРТРАНСГАЗ\"",null,null,null,null,null,null,"ПАСПОРТ ФІЗИКО-ХІМІЧНИХ ПОКАЗНИКІВ ПРИРОДНОГО ГАЗУ  № 656"]
["Філія УМГ\"Харківтрансгаз\"",null,null,null,null,null,null,null,"переданого УМГ \"ХАРКІВТРАНСГАЗ\" Херсонським  ЛВУМГ     та прийнятого ПАТ \"Херсонгаз\" , ТОВ  \"РИТЕЙЛ- КР\", РВУ \"Харьківавтогаз\", ТОВ \"ТЕК\"ІТЕРА\"  "]
["Херсонське ЛВУМГ ",null,null,null,null,null,null,null,null,"по  газопроводу Мар'ївка-Херсон, Херсон-Крим  за період з   01.05.2017   по   31.05.2017  ( точка відбору ГРС -1 Херсон)"]
["Вимірювальна хіміко-аналітична лабораторія",null,null,null,null,null,null,null,null,null,null,null,null,null,"МАРШРУТ № 656"]
["Свідоцтво про атестацію № РЧ 161/2015   дійсне до  01.01.2019 р.",null,null,null,null,null,null,null,"     "]
[]
["Число місяця","Компонентний склад, мол. % ",null,null,null,null,null,null,null,null,null,null,null,"Фізико-хімічні показники газу обчислені на основі компонентного складу, 101,325 кПа",null,null,null,null,null,null,null,null,null,"Температура точки роси за вологою (Р = 3.92 МПа), °С","Температура точки роси за вуглеводнями, °С","Вміст сірководню, г/м3","Вміст меркаптанової сірки, г/м3","Вміст механічних домішок, г/м3"]
[null,null,null,null,null,null,null,null,null,null,null,null,null,"Густина абсолютна, кг/м3,при 20 °С, ","Температура вимірювання/згоряння при  20/25°С"]
[null,"метан, С1","етан, С2","пропан, С3","ізо-бутан, і-С4","н-бутан, н-С4","нео-пентан, нео-С5","ізо-пентан, і-С5","н-пентан, н-С5","гексани та вищі, С6+","кисень, О2","азот, N2","діоксид вуглецю, CО2",null,"Теплота згоряння нижча",null,null,"Теплота згоряння вища",null,null,"Число Воббе вище"]
[null,null,null,null,null,null,null,null,null,null,null,null,null,null," ккал/м³"," МДж/м³","кВт⋅год/м³"," ккал/м³"," МДж/м³","кВт⋅год/м³"," ккал/м³"," МДж/м³","кВт⋅год/м³",null,null,null,null,null,null,null,"  "]
[1,null,null,null,null,null,null,null,null,null,null,null,null,null,{"$f":"P11*238.8459","v":8243.3124312899999},34.513100000000001,{"$f":"P11/3.6","v":9.5869722222222222},{"$f":"S11*238.8459","v":9138.4352107200011},38.260800000000003,{"$f":"S11/3.6","v":10.628},11931.618588270001,49.955300000000001,13.876472222222223]
[2,null,null,null,null,null,null,null,null,null,null,null,null,null,{"$f":"P12*238.8459","v":8243.3124312899999},34.513100000000001,{"$f":"P12/3.6","v":9.5869722222222222},{"$f":"S12*238.8459","v":9138.4352107200011},38.260800000000003,{"$f":"S12/3.6","v":10.628},11931.618588270001,49.955300000000001,13.876472222222223]
[3,95.381,2.5554000000000001,0.81369999999999998,0.13450000000000001,0.128,"<0,001",2.58E-2,1.78E-2,1.21E-2,1.0200000000000001E-2,0.72130000000000005,0.1996,0.70469999999999999,8234.4273638100003,34.475900000000003,9.5766388888888887,9129.1202206199996,38.221800000000002,10.617166666666668,{"$f":"V13*238.8459","v":11934.604162019999},49.967799999999997,{"$f":"V13/3.6","v":13.879944444444444},"*","*","<0,0001",3.3E-4,null,null,{"$f":"IF(AC13=100,\"ОК\",\" \")","v":" "}]
[4,95.4221,2.4847000000000001,0.79210000000000003,0.13,0.1293,"<0,001",2.7900000000000001E-2,1.9900000000000001E-2,1.9E-2,6.4999999999999997E-3,0.76490000000000002,0.20300000000000001,0.7046,8226.4260261599993,34.442399999999999,9.5673333333333321,9120.4023452700003,38.185299999999998,10.607027777777777,{"$f":"V14*238.8459","v":11924.835364710001},49.926900000000003,{"$f":"V14/3.6","v":13.868583333333333},"*","*",null,null,"відсут.",null,{"$f":"IF(AC14=100,\"ОК\",\" \")","v":" "}]
[5,94.992199999999997,2.6886999999999999,0.86470000000000002,0.13739999999999999,0.1457,"<0,001",3.3099999999999997E-2,2.46E-2,2.4500000000000001E-2,6.3E-3,0.85150000000000003,0.23039999999999999,0.70820000000000005,8247.7310804399985,34.531599999999997,9.5921111111111106,9142.9016290500003,38.279499999999999,10.633194444444444,11923.64113521,49.921900000000001,13.867194444444443,"*","*",null,null,null,null," "]
[6,null,null,null,null,null,null,null,null,null,null,null,null,null,8247.7310804399985,34.531599999999997,9.5921111111111106,9142.9016290500003,38.279499999999999,10.633194444444444,11923.64113521,49.921900000000001,13.867194444444443,null,null,null,null,null,null," "]
[7,null,null,null,null,null,null,null,null,null,null,null,null,null,8247.7310804399985,34.531599999999997,9.5921111111111106,9142.9016290500003,38.279499999999999,10.633194444444444,11923.64113521,49.921900000000001,13.867194444444443,null,null,null,null,null,null," "]
[8,null,null,null,null,null,null,null,null,null,null,null,null,null,8247.7310804399985,34.531599999999997,9.5921111111111106,9142.9016290500003,38.279499999999999,10.633194444444444,11923.64113521,49.921900000000001,13.867194444444443,null,null,null,null,null,null," "]
[9,null,null,null,null,null,null,null,null,null,null,null,null,null,8247.7310804399985,34.531599999999997,9.5921111111111106,9142.9016290500003,38.279499999999999,10.633194444444444,11923.64113521,49.921900000000001,13.867194444444443,null,null,null,null,null,null," "]
[10,95.2654,2.6743999999999999,0.85360000000000003,0.14219999999999999,0.13239999999999999,"<0,001",2.5700000000000001E-2,1.7500000000000002E-2,1.52E-2,6.4999999999999997E-3,0.65969999999999995,0.2069,0.70599999999999996,8254.5859577699994,34.560299999999998,9.6000833333333322,9150.8790821099992,38.312899999999999,10.642472222222223,11952.75645042,50.043799999999997,13.901055555555555,"*","*",null,null,null,null," "]
[11,95.251400000000004,2.6682000000000001,0.85389999999999999,0.14269999999999999,0.13450000000000001,"<0,001",2.7099999999999999E-2,1.8700000000000001E-2,1.54E-2,6.6E-3,0.67549999999999999,0.20530000000000001,0.70609999999999995,8254.2993426899993,34.559100000000001,9.5997500000000002,9150.5446978500004,38.311500000000002,10.642083333333334,11951.08452912,50.036799999999999,13.899111111111111,"*","*",null,null,null,null," "]
[12,94.468999999999994,3.0017999999999998,1.0484,0.16769999999999999,0.1951,"<0,001",4.4900000000000002E-2,3.5099999999999999E-2,2.9499999999999998E-2,6.7999999999999996E-3,0.75860000000000005,0.24229999999999999,0.71389999999999998,8318.4055822499995,34.827500000000001,9.6743055555555557,9218.85462525,38.597499999999997,10.721527777777776,11974.204812240001,50.133600000000001,13.926,"*","*",null,null,null,null," "]
[13,94.543000000000006,2.9649999999999999,1.0376000000000001,0.16639999999999999,0.1933,"<0,001",4.41E-2,3.4299999999999997E-2,2.8899999999999999E-2,6.4000000000000003E-3,0.74250000000000005,0.23760000000000001,0.71330000000000005,8315.3005855500014,34.814500000000002,9.6706944444444449,9215.6063210100001,38.5839,10.717750000000001,11974.897465349999,50.136499999999998,13.926805555555555,"*","*",null,null,null,null," "]
[14,null,null,null,null,null,null,null,null,null,null,null,null,null,8315.3005855500014,34.814500000000002,9.6706944444444449,9215.6063210100001,38.5839,10.717750000000001,11974.897465349999,50.136499999999998,13.926805555555555,null,null,null,null,null,null," "]
[15,94.6357,2.9249000000000001,1.0067999999999999,0.1636,0.1842,"<0,001",4.2000000000000003E-2,3.2599999999999997E-2,2.8000000000000001E-2,7.6E-3,0.73860000000000003,0.23530000000000001,0.71240000000000003,8305.913941679999,34.775199999999998,9.6597777777777765,9205.5747932100003,38.541899999999998,10.706083333333332,11969.953355219999,50.1158,13.921055555555554,"*","*",null,null,null,null," "]
[16,94.971900000000005,2.7728999999999999,0.90690000000000004,0.14649999999999999,0.1537,1E-3,3.3000000000000002E-2,2.4400000000000002E-2,1.95E-2,6.6E-3,0.74860000000000004,0.215,0.70860000000000001,8269.2988652099993,34.621899999999997,9.6171944444444435,9166.3562964299999,38.377699999999997,10.660472222222221,11950.415760599999,50.033999999999999,13.898333333333333,"*","*","<0,0001",2.5999999999999998E-4,null,null," "]
[17,94.6447,2.9378000000000002,0.99099999999999999,0.1598,0.17580000000000001,"<0,001",3.9600000000000003E-2,2.98E-2,2.2800000000000001E-2,7.7999999999999996E-3,0.75470000000000004,0.2356,0.71189999999999998,8298.2947574699992,34.743299999999998,9.6509166666666655,9197.3346096599998,38.507399999999997,10.696499999999999,11963.576169690001,50.089100000000002,13.913638888888888,"*","*",null,null,null,null," "]
[18,94.438500000000005,3.0133999999999999,1.0561,0.17,0.1968,"<0,001",4.53E-2,3.56E-2,3.4599999999999999E-2,6.7999999999999996E-3,0.75960000000000005,0.24249999999999999,0.71430000000000005,8322.5137317300014,34.844700000000003,9.6790833333333346,9223.2732744000004,38.616,10.726666666666667,11976.49773288,50.1432,13.928666666666667,"*","*",null,null,null,null," "]
[19,94.455699999999993,2.9750000000000001,1.0385,0.15260000000000001,0.1956,2.2000000000000001E-3,4.3999999999999997E-2,3.6900000000000002E-2,3.8600000000000002E-2,7.1000000000000004E-3,0.80369999999999997,0.25,0.71489999999999998,8316.6142380000001,34.82,9.6722222222222225,9217.0632810000006,38.590000000000003,10.719444444444445,11966,{"$f":"U29/238.8459","v":50.099248092598614},13.916457803499615,"*","*",null,null,null,null," "]
[20,null,null,null,null,null,null,null,null,null,null,null,null,null,8316.6142380000001,34.82,9.6722222222222225,9217.0632810000006,38.590000000000003,10.719444444444445,11966,50.099248092598614,13.916457803499615,null,null,null,null,null,null,{"$f":"IF(AC30=100,\"ОК\",\" \")","v":" "}]
[21,null,null,null,null,null,null,null,null,null,null,null,null,null,8316.6142380000001,34.82,9.6722222222222225,9217.0632810000006,38.590000000000003,10.719444444444445,11966,50.099248092598614,13.916457803499615,null,null,null,null,null,null," "]
[22,94.668000000000006,2.9224999999999999,0.99980000000000002,0.1484,0.17710000000000001,2.0999999999999999E-3,3.8399999999999997E-2,3.1199999999999999E-2,3.3099999999999997E-2,7.1000000000000004E-3,0.72540000000000004,0.24679999999999999,0.71279999999999999,8304.6719430000012,34.770000000000003,9.6583333333333332,9205.1209859999999,38.54,10.705555555555556,11969,50.111808492421261,13.919946803450349,"*","*",null,null,null,null," "]
[23,94.494200000000006,2.9744999999999999,1.0242,0.1507,0.1888,2.2000000000000001E-3,4.2299999999999997E-2,3.49E-2,3.7499999999999999E-2,6.4999999999999997E-3,0.79379999999999995,0.25040000000000001,0.71440000000000003,8311.8373199999987,34.799999999999997,9.6666666666666661,9212.2863629999993,38.57,10.713888888888889,11964,50.09087449271685,13.914131803532458,-15.5,-14.2,null,null,"відсут.",null,{"$f":"IF(AC33=100,\"ОК\",\" \")","v":" "}]
[24,93.995099999999994,3.1669999999999998,1.1388,0.1656,0.2268,2.5000000000000001E-3,5.3900000000000003E-2,4.5999999999999999E-2,5.33E-2,7.1000000000000004E-3,0.86980000000000002,0.27410000000000001,0.71960000000000002,8352.4411230000005,34.97,9.7138888888888886,9255.2786250000008,38.75,10.763888888888889,11976,50.141116092007444,13.928087803335401,-13.6,-12.9,null,null,null,null," "]
[25,94.195800000000006,3.1141000000000001,1.1007,0.16089999999999999,0.21099999999999999,2.3E-3,4.8599999999999997E-2,4.1200000000000001E-2,4.6699999999999998E-2,7.0000000000000001E-3,0.80410000000000004,0.2676,0.71760000000000002,8340.4988279999998,34.92,9.7000000000000011,9243.3363300000001,38.700000000000003,10.75,11978,50.149489691889208,13.930413803302557,-14.6,-12.6,null,null,null,null," "]
[26,94.9114,2.8822000000000001,0.93420000000000003,0.14149999999999999,0.15190000000000001,1.8E-3,0.03,2.35E-2,2.5600000000000001E-2,7.4999999999999997E-3,0.65359999999999996,0.23669999999999999,0.71009999999999995,8287.9527300000009,34.700000000000003,9.6388888888888893,9186.0133139999998,38.46,10.683333333333334,11966,50.099248092598614,13.916457803499615,-12.6,-11.5,null,null,null,null," "]
[27,null,null,null,null,null,null,null,null,null,null,null,null,null,8287.9527300000009,34.700000000000003,9.6388888888888893,9186.0133139999998,38.46,10.683333333333334,11961,50.1,13.916666666666666,null,null,null,null,null,null," "]
[28,null,null,null,null,null,null,null,null,null,null,null,null,null,8287.9527300000009,34.700000000000003,9.6388888888888893,9186.0133139999998,38.46,10.683333333333334,11966,50.099248092598614,13.916457803499615,null,null,null,null,null,null," "]
[29,95.330299999999994,2.6726000000000001,0.86819999999999997,0.1361,0.13320000000000001,1.6000000000000001E-3,2.2800000000000001E-2,1.67E-2,1.1900000000000001E-2,7.0000000000000001E-3,0.59930000000000005,0.20039999999999999,0.70620000000000005,8261.6796810000014,34.590000000000003,9.6083333333333343,9157.3518060000006,38.340000000000003,10.65,11964,50.09087449271685,13.914131803532458,-12,-10.199999999999999]
[30,95.376000000000005,2.645,0.873,0.13500000000000001,0.13220000000000001,1.5E-3,2.23E-2,1.6400000000000001E-2,1.1599999999999999E-2,7.0000000000000001E-3,0.58379999999999999,0.1988,0.70589999999999997,8259.2912219999998,34.58,9.6055555555555543,9157.3518060000006,38.340000000000003,10.65,11963.791131,50.09,13.91388888888889,-12.4,-11]
[31,94.853899999999996,2.8864000000000001,0.97330000000000005,0.14660000000000001,0.1643,1.8E-3,3.2099999999999997E-2,2.5700000000000001E-2,2.2499999999999999E-2,6.1999999999999998E-3,0.65369999999999995,0.2336,0.71089999999999998,8297.506566,34.74,9.65,9195.5671500000008,38.5,10.694444444444445,11973.344967000001,50.13,13.925000000000001,-18.2,-18]
["Рівень одоризації відповідає чинним нормативним документам",null,null,null,null,null,null,null,null,null,null,null,null,null,{"$f":"SUMPRODUCT(O11:O41,' розрахунок'!AC6:AC36)/' розрахунок'!AC37","v":8285.3266678361033},{"$f":"SUMPRODUCT(P11:P41,' розрахунок'!AC6:AC36)/' розрахунок'!AC37","v":34.689005203087433},{"$f":"SUMPRODUCT(Q11:Q41,' розрахунок'!AC6:AC36)/' розрахунок'!AC37","v":9.6358347786354006},{"$f":"SUMPRODUCT(R11:R41,' розрахунок'!AC6:AC36)/' розрахунок'!AC37","v":9183.5130051923588},{"$f":"SUMPRODUCT(S11:S41,' розрахунок'!AC6:AC36)/' розрахунок'!AC37","v":38.449531707231969},{"$f":"SUMPRODUCT(T11:T41,' розрахунок'!AC6:AC36)/' розрахунок'!AC37","v":10.680425474231104}]
[null,null,null,null,null,null,null,"Середньозважене значення теплоти згоряння:"]
["*","-прилад у ремонті"]
[]
[]
[null,"Начальник управління Херсонського ЛВУМГ                                                                                                             Доскоч М.В.                                                                                      01.06.2017"]
[null,null,"Підрозділу підприємства, якому підпорядкована лабораторія",null,null,null,null,null,null,null,null,null,null,null,"прізвище",null,null,"підпис",null,null,null,"дата"]
[null,"Завідувач лабораторією                                                                                                                                                  Камишанова О.С.                                                                           01.06.2017                                                              "]
[null,null,"Лабораторія, де здійснювалось вимірювання газу",null,null,null,null,null,null,null,null,null,null,null,"прізвище",null,null,"підпис",null,null,null,"дата"]
[null,"Начальник служби метрології                                                                                                                                        Скавронський Є.К.                                                                          01.06.2017                                                                    "]
[null,null,"Підрозділу, відповідального за облік газу за маршрутом",null,null,null,null,null,null,null,null,null,null,null,"прізвище",null,null,"підпис",null,null,null,"дата"]

{"sheet":" розрахунок","index":1,"n_rows":363,"n_cols":52,"rows_kept":363,"cut":false,"hidden":false,"merged":[[2,0,4,0],[2,1,4,1],[2,2,2,27],[2,28,4,28],[3,2,3,27]]}
["                                                                                                                                                                                                                                        Додаток до Паспорту фізико-хімічних показників природного газу по маршруту № 656"]
[]
["Число місяця","Теплота згоряння вища, МДж/м3","Херсонська область",null,null,null,null,null,null,null,null,null,null,null,null,null,null,null,null,null,null,null,null,null,null,null,null,null,"Загальний обсяг газу, м3"]
[null,null,"Обсяг газу переданого за добу,  м3 "]
[null,null,"ГРС Херсон -1","ГРС Херсон-2","ГРС Белозірка","ГРС Станіслав","ГРС Східне","ГРС Садове","ГРС Цюрупинск","ГРС Виноградове","ГРС Н.Маячка","ГРС Обривки","ГРС Нова Каховка","ГРС Каховка","ГРС Каховка (Коробки)","ГРС Раздольне","ГРС Брилівка","ГРС Каланчак","ГРС Скадовськ","ГРС Новоолександрівка","ГРС Чаплинка","ГРС Хрестівка","ГРС Асканія Нова","ГРС Асканія Нова (Тавричанка)","ГРС Червоний Чабан","ТОВ\"РИТЕЙЛ-КР\"","РВУ\" ХАРКІВАВТОГАЗ\"","ТОВ\"ТЕК\"ІТЕРА\""]
[1,38.260800000000003,83472,0,7803,3027,3554,1155,18715,1381,1773,0,43576,25142,0,376,3647,4718,10955,1074,4548,1563,0,2191,1148,4001.0000000000005,0,510,{"$f":"SUM(C6:AB6)","v":224329}]
[2,38.260800000000003,92761,0,6842,2544,3454,979,17219,1242,1596,0,43903,24216,0,411,3316,4747,10067,947,3634,1346,0,1969,979,4815,0,1936,228923]
[3,38.221800000000002,94566,0,5906,2252,3283,853,17289,1118,1414,0,39906,21754,0,380,2930,4393,9929,901,3767,1176,0,1706,826,5754,467,2170,222740]
[4,38.185299999999998,96103,0,5666,2208,3211,842,19901,1082,1424,0,36759,22622,0,327,2830,3988,8962,852,3534,1128,0,1880,811,5715,406,2108,222359]
[5,38.279499999999999,95262,0,4843,2184,3601,858,18732,1142,1431,0,39323,17528,0,331,2899,4075.9999999999995,9758,837,4057.0000000000005,1112,0,1678,807,5705,609,2390,219163]
[6,38.279499999999999,84400,0,5891,2192,3421,900,17150,1205,1471,0,40521,19257,0,339,2982,4238,10038,869,3366,1140,0,1800,926,4392,0,1923,208421]
[7,38.279499999999999,80785,0,5893,2355,3143,887,14977,1147,1391,0,39739,21638,0,308,2895,4022.0000000000005,9239,850,4125,1160,0,1720,844,3953,0,985,202056]
[8,38.279499999999999,89344,0,6625,2935,3728,956,16714,1282,1496,0,41120,22687,0,367,3264,4260,10363,890,3645,1237,0,1769,956,4132,0,1164,218934]
[9,38.279499999999999,92836,0,6485,2571,3133,903,15799,1173,1398,0,40612,22663,0,338,3045,4091.9999999999995,9946,860,4070.0000000000005,1087,0,1734,857,4665,0,1574,219841]
[10,38.312899999999999,116477,0,7767,3103,4126,881,22767,1323,1621,0,44106,23708,0,419,3305,4299,12166,933,3745,1286,0,1900,921,1874,1568,2244,260539]
[11,38.311500000000002,128003.99999999999,0,9194,3592,4400,1248,39346,1715,2057,0,46725,24159,0,504,4080,4722,14058,1099,5501,1813,0,2087,1097,0,1380,2240,299021]
[12,38.597499999999997,124109,0,9166,3626,3907,1215,38231,1639,1950,0,46745,24633,0,491,3787,4666,13592,1059,4391,1561,0,1986,1052,3263,1379,2539,294987]
[13,38.5839,101309,0,6839,2811,2703,1026,30890,1351,1602,0,43428,25148,0,455,3247,4308,11104,923,4421,1315,0,1934,944,2943,566,1607,250874]
[14,38.5839,126003,0,12199,4695,4158,1615,38574,1834,2140,0,52417,30306,0,712,4446,5068,13729,1233,5224,1919,0,2440,1156,4300,0,1095,315263]
[15,38.541899999999998,121300,0,9224,3439,3626,1360,36489,1601,1762,0,48751,28200,0,551,4017.0000000000005,4751,12801,1100,5264,1632,0,2153,1010.9999999999999,4451,794,1882,296159]
[16,38.377699999999997,108112,0,6662,2350,2342,1050,29067,1344,1481,0,43950,22872,0,409,3091,4171,10632,885,3702,1158,0,1744,863,6177,415,2421,254898]
[17,38.507399999999997,112370,0,6647,2499,2400,1170,32106,1470,1560,0,44562,25569,0,420,3096,4123,9532,918,4215,1189,0,1764,785,5896,397,2444,265132]
[18,38.616,110944,0,6416,3104,2380,1199,30064,1378,1610,0,40543,27559,0,426,3128,4003.9999999999995,10611,961,3787,1234,0,1778,838,5723,503,2424,260614]
[19,38.590000000000003,105975,0,6512,3162,2403,1288,23615,1364,1543,0,40812,20524,0,404,3007,4277,10644,887,4422,1313,0,1757,976,5310,653,2571,243419]
[20,38.590000000000003,106662,0,8198,2979,2853,1599,23603,1634,1787,0,45862,18589,0,493,3594,4573,12943,1006.9999999999999,3982,1392,0,2008,1065,4741,538,1734,251836]
[21,38.590000000000003,108691,0,8090.9999999999991,2860,2769,1837,24872,1906,1846,0,46010,20358,0,547,3807,4682,14744,1106,5221,1615,0,2206,1151,4038.0000000000005,0,1128,259485]
[22,38.54,122777,0,8896,3238,2682,789,23735,1763,1967,0,46909,26027,0,505,3587,4652,13024,1054,4815,1668,0,2153,1079,5552,0,1894,278766]
[23,38.57,115199,0,6926,2468,2307,486,21233,1444,1647,0,44005,23664,0,440,3198,4483,11655,998,4520,1425,0,1872,964,5994,455,2176,257559]
[24,38.75,111721,0,6262,2151,2157,506,18900,1391,1524,0,42657,22576,0,392,2995,4307,10476,981,3550,1304,0,1766,887,5833,0,2450,244786]
[25,38.700000000000003,108861,0,6070,2181,2106,741,21003,1346,1459,0,37822,21201,0,402,2912,4272,10267,871,4131,1195,0,1711,810,5973,94,2358,237786]
[26,38.46,102264,0,5739,2094,1964,818,17380,1379,1413,0,40454,18312,0,370,2796,3895,9622,816,3254,1148,0,1605,816,5365,361,2235,224100]
[27,38.46,94469,0,6337,2151,2069,910,16637,1444,1448,0,39378,20673,0,376,3025,4165,9482,808,4168,1113,0,1697,898,3853,0,1658,216759]
[28,38.46,91143,0,6034,2125,2158,909,14235,1319,1357,0,39698,22813,0,378,2879,4078.0000000000005,8882,849,3310,1101,0,1669,829,4066,0,1565,211397]
[29,38.340000000000003,97202,0,5207,2749,1655,687,14042,1254,1305,0,40075,21442,0,322,2607,3846,8955,755,3766,969,0,1488,743,5136,35,2198,216438]
[30,38.340000000000003,96145,0,5022,2570,1724,602,15920,1274,1287,0,37114,21041,0,323,2553,3645,8791,782,2887,944,0,1268,743,6171,602,2227,213635]
[31,38.5,97818,0,5006,2603,1744.0000000000002,689,17152,1245,1253,0,38178,19147,0,306,2494,3755,8751,753,3961.0000000000005,970,0,1443,753,5888,1012,2500,217421]
["Загальний обсяг газу, м3",null,{"$f":"SUM(C6:C36)","v":3217084},{"$f":"SUM(D6:D36)","v":0},214368,84818,89161,30958,706357,43190,49013,0,1315660,706028,0,12822,99459,133276,335718,28858,126983,40213,0,56876,{"$f":"SUM(Y6:Y36)","v":28535},145679,12234,60350,{"$f":"SUM(AC6:AC36)","v":7537640}]
["Енергія, МДж",null,{"$f":"SUMPRODUCT(B6:B36,C6:C36)","v":123701386.2756},{"$f":"SUMPRODUCT(B6:B36,D6:D36)","v":0},{"$f":"SUMPRODUCT(B6:B36,E6:E36)","v":8242662.8434000015},{"$f":"SUMPRODUCT(B6:B36,F6:F36)","v":3261082.1450999998},{"$f":"SUMPRODUCT(B6:B36,G6:G36)","v":3426021.8497000006},{"$f":"SUMPRODUCT(B6:B36,H6:H36)","v":1190347.1235},{"$f":"SUMPRODUCT(B6:B36,I6:I36)","v":27167396.455500007},{"$f":"SUMPRODUCT(B6:B36,J6:J36)","v":1660813.6908000002},{"$f":"SUMPRODUCT(B6:B36,K6:K36)","v":1884421.6148000001},{"$f":"SUMPRODUCT(B6:B36,L6:L36)","v":0},{"$f":"SUMPRODUCT(B6:B36,M6:M36)","v":50580160.105799995},{"$f":"SUMPRODUCT(B6:B36,N6:N36)","v":27142718.422499999},{"$f":"SUMPRODUCT(B6:B36,O6:O36)","v":0},{"$f":"SUMPRODUCT(B6:B36,P6:P36)","v":493088.20030000003},{"$f":"SUMPRODUCT(B6:B36,Q6:Q36)","v":3823738.8619999988},{"$f":"SUMPRODUCT(B6:B36,R6:R36)","v":5123519.0211000005},{"$f":"SUMPRODUCT(B6:B36,S6:S36)","v":12908171.794599999},{"$f":"SUMPRODUCT(B6:B36,T6:T36)","v":1109496.49},{"$f":"SUMPRODUCT(B6:B36,U6:U36)","v":4882173.9349000007},{"$f":"SUMPRODUCT(B6:B36,V6:V36)","v":1546157.3133999999},{"$f":"SUMPRODUCT(B6:B36,W6:W36)","v":0},{"$f":"SUMPRODUCT(B6:B36,X6:X36)","v":2186552.5074999994},{"$f":"SUMPRODUCT(B6:B36,Y6:Y36)","v":1097017.3910999999},{"$f":"SUMPRODUCT(B6:B36,Z6:Z36)","v":5601031.4689999996},{"$f":"SUMPRODUCT(B6:B36,AA6:AA36)","v":470330.74489999999},{"$f":"SUMPRODUCT(B6:B36,AB6:AB36)","v":2320439.9222000004},{"$f":"SUMPRODUCT(B6:B36,AC6:AC36)","v":289818728.17769998}]
["Теплота згоряння (середньозважене значення за місяць), МДж/м³",null,{"$f":"C38/C37","v":38.451400795129999},{"$error":"#DIV/0!"},38.450994753881183,38.447996240184864,38.425116919953801,38.450388381032369,38.461282970933972,38.453662671914799,38.447383649235917,{"$error":"#DIV/0!"},38.444704639344508,38.444252101191452,{"$error":"#DIV/0!"},38.456418678833259,38.445378115605415,38.442923115189537,38.449448032574956,38.44675618545984,38.447460958553513,38.449190893492151,{"$error":"#DIV/0!"},38.444203310711011,38.444625586122299,38.447761647183185,38.444559825077654,38.449708735708377,{"$f":"AC38/AC37","v":38.449531707231969}]
["Теплота згоряння (середньозважене значення за місяць), ккал/м³",null,{"$f":"C39*238.8459","v":9183.9594291735393},{"$f":"D39*238.8459","v":{"$error":"#DIV/0!"}},9183.8624478860293,9183.14626518357,9177.6816333515944,9183.7176182172188,9186.3197463473989,9184.4996691698943,9182.9999503470372,{"$error":"#DIV/0!"},9182.3600798184143,9182.2519929359642,{"$error":"#DIV/0!"},9185.1579301227412,9182.5209368620799,9181.9345700782487,9183.4930198435941,9182.8500831967231,9183.0184153605769,9183.4316032279366,{"$error":"#DIV/0!"},9182.2403395297515,9182.3411982804082,9183.0902336069503,9182.3254915245143,9183.555287718129,9183.513005192357]
["Теплота згоряння (середньозважене значення за місяць), кВт*год./м³",null,{"$f":"C39/3.6","v":10.680944665313888},{"$f":"D39/3.6","v":{"$error":"#DIV/0!"}},10.680831876078106,10.679998955606907,10.673643588876056,10.680663439175659,10.683689714148326,10.681572964420777,10.679828791454421,{"$error":"#DIV/0!"},10.679084622040142,10.678958916997626,{"$error":"#DIV/0!"},10.682338521898128,10.679271698779282,10.678589754219315,10.68040223127082,10.679654495961067,10.679850266264864,10.68033080374782,{"$error":"#DIV/0!"},10.678945364086392,10.67906266281175,10.679933790884219,10.679044395854904,10.680474648807882,10.680425474231102]
[]
[]
[]
[]
[]
[]
[]
[]
[]
[]
[]
[]
[]
[]
[]
[]
[]
[]
[]
[]
[]
[]
[]
[]
[]
[]
[]
[]
[]
[]
[]
[]
[]
[]
[]
[]
[null,null,null,null,null,null,null,null,null,null,null,null,null,null,null,null,null,null,null,null,null,null,null,null,null,null,null,null,null,null,null,null,null,null,null,null,null,null,null,null,null,null,null,null,null,null,null,null,null,null,null,{"$f":"AZ46*1000","v":0}]
[null,null,null,null,null,null,null,null,null,null,null,null,null,null,null,null,null,null,null,null,null,null,null,null,null,null,null,null,null,null,null,null,null,null,null,null,null,null,null,null,null,null,null,null,null,null,null,null,null,null,null,{"$f":"AZ47*1000","v":0}]
[null,null,null,null,null,null,null,null,null,null,null,null,null,null,null,null,null,null,null,null,null,null,null,null,null,null,null,null,null,null,null,null,null,null,null,null,null,null,null,null,null,null,null,null,null,null,null,null,null,null,null,{"$f":"AZ48*1000","v":0}]
[null,null,null,null,null,null,null,null,null,null,null,null,null,null,null,null,null,null,null,null,null,null,null,null,null,null,null,null,null,null,null,null,null,null,null,null,null,null,null,null,null,null,null,null,null,null,null,null,null,null,null,{"$f":"AZ49*1000","v":0}]
[null,null,null,null,null,null,null,null,null,null,null,null,null,null,null,null,null,null,null,null,null,null,null,null,null,null,null,null,null,null,null,null,null,null,null,null,null,null,null,null,null,null,null,null,null,null,null,null,null,null,null,{"$f":"AZ50*1000","v":0}]
[null,null,null,null,null,null,null,null,null,null,null,null,null,null,null,null,null,null,null,null,null,null,null,null,null,null,null,null,null,null,null,null,null,null,null,null,null,null,null,null,null,null,null,null,null,null,null,null,null,null,null,{"$f":"AZ51*1000","v":0}]
[null,null,null,null,null,null,null,null,null,null,null,null,null,null,null,null,null,null,null,null,null,null,null,null,null,null,null,null,null,null,null,null,null,null,null,null,null,null,null,null,null,null,null,null,null,null,null,null,null,null,null,{"$f":"AZ52*1000","v":0}]
[null,null,null,null,null,null,null,null,null,null,null,null,null,null,null,null,null,null,null,null,null,null,null,null,null,null,null,null,null,null,null,null,null,null,null,null,null,null,null,null,null,null,null,null,null,null,null,null,null,null,null,{"$f":"AZ53*1000","v":0}]
[null,null,null,null,null,null,null,null,null,null,null,null,null,null,null,null,null,null,null,null,null,null,null,null,null,null,null,null,null,null,null,null,null,null,null,null,null,null,null,null,null,null,null,null,null,null,null,null,null,null,null,{"$f":"AZ54*1000","v":0}]
[null,null,null,null,null,null,null,null,null,null,null,null,null,null,null,null,null,null,null,null,null,null,null,null,null,null,null,null,null,null,null,null,null,null,null,null,null,null,null,null,null,null,null,null,null,null,null,null,null,null,null,{"$f":"AZ55*1000","v":0}]
[null,null,null,null,null,null,null,null,null,null,null,null,null,null,null,null,null,null,null,null,null,null,null,null,null,null,null,null,null,null,null,null,null,null,null,null,null,null,null,null,null,null,null,null,null,null,null,null,null,null,null,{"$f":"AZ56*1000","v":0}]
[null,null,null,null,null,null,null,null,null,null,null,null,null,null,null,null,null,null,null,null,null,null,null,null,null,null,null,null,null,null,null,null,null,null,null,null,null,null,null,null,null,null,null,null,null,null,null,null,null,null,null,{"$f":"AZ57*1000","v":0}]
[null,null,null,null,null,null,null,null,null,null,null,null,null,null,null,null,null,null,null,null,null,null,null,null,null,null,null,null,null,null,null,null,null,null,null,null,null,null,null,null,null,null,null,null,null,null,null,null,null,null,null,{"$f":"AZ58*1000","v":0}]
[null,null,null,null,null,null,null,null,null,null,null,null,null,null,null,null,null,null,null,null,null,null,null,null,null,null,null,null,null,null,null,null,null,null,null,null,null,null,null,null,null,null,null,null,null,null,null,null,null,null,null,{"$f":"AZ59*1000","v":0}]
[null,null,null,null,null,null,null,null,null,null,null,null,null,null,null,null,null,null,null,null,null,null,null,null,null,null,null,null,null,null,null,null,null,null,null,null,null,null,null,null,null,null,null,null,null,null,null,null,null,null,null,{"$f":"AZ60*1000","v":0}]
[null,null,null,null,null,null,null,null,null,null,null,null,null,null,null,null,null,null,null,null,null,null,null,null,null,null,null,null,null,null,null,null,null,null,null,null,null,null,null,null,null,null,null,null,null,null,null,null,null,null,null,{"$f":"AZ61*1000","v":0}]
[null,null,null,null,null,null,null,null,null,null,null,null,null,null,null,null,null,null,null,null,null,null,null,null,null,null,null,null,null,null,null,null,null,null,null,null,null,null,null,null,null,null,null,null,null,null,null,null,null,null,null,{"$f":"AZ62*1000","v":0}]
[null,null,null,null,null,null,null,null,null,null,null,null,null,null,null,null,null,null,null,null,null,null,null,null,null,null,null,null,null,null,null,null,null,null,null,null,null,null,null,null,null,null,null,null,null,null,null,null,null,null,null,{"$f":"AZ63*1000","v":0}]
[null,null,null,null,null,null,null,null,null,null,null,null,null,null,null,null,null,null,null,null,null,null,null,null,null,null,null,null,null,null,null,null,null,null,null,null,null,null,null,null,null,null,null,null,null,null,null,null,null,null,null,{"$f":"AZ64*1000","v":0}]
[null,null,null,null,null,null,null,null,null,null,null,null,null,null,null,null,null,null,null,null,null,null,null,null,null,null,null,null,null,null,null,null,null,null,null,null,null,null,null,null,null,null,null,null,null,null,null,null,null,null,null,{"$f":"AZ65*1000","v":0}]
[null,null,null,null,null,null,null,null,null,null,null,null,null,null,null,null,null,null,null,null,null,null,null,null,null,null,null,null,null,null,null,null,null,null,null,null,null,null,null,null,null,null,null,null,null,null,null,null,null,null,null,{"$f":"AZ66*1000","v":0}]
[null,null,null,null,null,null,null,null,null,null,null,null,null,null,null,null,null,null,null,null,null,null,null,null,null,null,null,null,null,null,null,null,null,null,null,null,null,null,null,null,null,null,null,null,null,null,null,null,null,null,null,{"$f":"AZ67*1000","v":0}]
[null,null,null,null,null,null,null,null,null,null,null,null,null,null,null,null,null,null,null,null,null,null,null,null,null,null,null,null,null,null,null,null,null,null,null,null,null,null,null,null,null,null,null,null,null,null,null,null,null,null,null,{"$f":"AZ68*1000","v":0}]
[null,null,null,null,null,null,null,null,null,null,null,null,null,null,null,null,null,null,null,null,null,null,null,null,null,null,null,null,null,null,null,null,null,null,null,null,null,null,null,null,null,null,null,null,null,null,null,null,null,null,null,{"$f":"AZ69*1000","v":0}]
[null,null,null,null,null,null,null,null,null,null,null,null,null,null,null,null,null,null,null,null,null,null,null,null,null,null,null,null,null,null,null,null,null,null,null,null,null,null,null,null,null,null,null,null,null,null,null,null,null,null,null,{"$f":"AZ70*1000","v":0}]
[null,null,null,null,null,null,null,null,null,null,null,null,null,null,null,null,null,null,null,null,null,null,null,null,null,null,null,null,null,null,null,null,null,null,null,null,null,null,null,null,null,null,null,null,null,null,null,null,null,null,null,{"$f":"AZ71*1000","v":0}]
[null,null,null,null,null,null,null,null,null,null,null,null,null,null,null,null,null,null,null,null,null,null,null,null,null,null,null,null,null,null,null,null,null,null,null,null,null,null,null,null,null,null,null,null,null,null,null,null,null,null,null,{"$f":"AZ72*1000","v":0}]
[null,null,null,null,null,null,null,null,null,null,null,null,null,null,null,null,null,null,null,null,null,null,null,null,null,null,null,null,null,null,null,null,null,null,null,null,null,null,null,null,null,null,null,null,null,null,null,null,null,null,null,{"$f":"AZ73*1000","v":0}]
[null,null,null,null,null,null,null,null,null,null,null,null,null,null,null,null,null,null,null,null,null,null,null,null,null,null,null,null,null,null,null,null,null,null,null,null,null,null,null,null,null,null,null,null,null,null,null,null,null,null,null,{"$f":"AZ74*1000","v":0}]
[null,null,null,null,null,null,null,null,null,null,null,null,null,null,null,null,null,null,null,null,null,null,null,null,null,null,null,null,null,null,null,null,null,null,null,null,null,null,null,null,null,null,null,null,null,null,null,null,null,null,null,{"$f":"AZ75*1000","v":0}]
[null,null,null,null,null,null,null,null,null,null,null,null,null,null,null,null,null,null,null,null,null,null,null,null,null,null,null,null,null,null,null,null,null,null,null,null,null,null,null,null,null,null,null,null,null,null,null,null,null,null,null,{"$f":"AZ76*1000","v":0}]
[null,null,null,null,null,null,null,null,null,null,null,null,null,null,null,null,null,null,null,null,null,null,null,null,null,null,null,null,null,null,null,null,null,null,null,null,null,null,null,null,null,null,null,null,null,null,null,null,null,null,null,{"$f":"AZ77*1000","v":0}]
[null,null,null,null,null,null,null,null,null,null,null,null,null,null,null,null,null,null,null,null,null,null,null,null,null,null,null,null,null,null,null,null,null,null,null,null,null,null,null,null,null,null,null,null,null,null,null,null,null,null,null,{"$f":"AZ78*1000","v":0}]
[null,null,null,null,null,null,null,null,null,null,null,null,null,null,null,null,null,null,null,null,null,null,null,null,null,null,null,null,null,null,null,null,null,null,null,null,null,null,null,null,null,null,null,null,null,null,null,null,null,null,null,{"$f":"AZ79*1000","v":0}]
[null,null,null,null,null,null,null,null,null,null,null,null,null,null,null,null,null,null,null,null,null,null,null,null,null,null,null,null,null,null,null,null,null,null,null,null,null,null,null,null,null,null,null,null,null,null,null,null,null,null,null,{"$f":"AZ80*1000","v":0}]
[null,null,null,null,null,null,null,null,null,null,null,null,null,null,null,null,null,null,null,null,null,null,null,null,null,null,null,null,null,null,null,null,null,null,null,null,null,null,null,null,null,null,null,null,null,null,null,null,null,null,null,{"$f":"AZ81*1000","v":0}]
[null,null,null,null,null,null,null,null,null,null,null,null,null,null,null,null,null,null,null,null,null,null,null,null,null,null,null,null,null,null,null,null,null,null,null,null,null,null,null,null,null,null,null,null,null,null,null,null,null,null,null,{"$f":"AZ82*1000","v":0}]
[null,null,null,null,null,null,null,null,null,null,null,null,null,null,null,null,null,null,null,null,null,null,null,null,null,null,null,null,null,null,null,null,null,null,null,null,null,null,null,null,null,null,null,null,null,null,null,null,null,null,null,{"$f":"AZ83*1000","v":0}]
[null,null,null,null,null,null,null,null,null,null,null,null,null,null,null,null,null,null,null,null,null,null,null,null,null,null,null,null,null,null,null,null,null,null,null,null,null,null,null,null,null,null,null,null,null,null,null,null,null,null,null,{"$f":"AZ84*1000","v":0}]
[null,null,null,null,null,null,null,null,null,null,null,null,null,null,null,null,null,null,null,null,null,null,null,null,null,null,null,null,null,null,null,null,null,null,null,null,null,null,null,null,null,null,null,null,null,null,null,null,null,null,null,{"$f":"AZ85*1000","v":0}]
[null,null,null,null,null,null,null,null,null,null,null,null,null,null,null,null,null,null,null,null,null,null,null,null,null,null,null,null,null,null,null,null,null,null,null,null,null,null,null,null,null,null,null,null,null,null,null,null,null,null,null,{"$f":"AZ86*1000","v":0}]
[null,null,null,null,null,null,null,null,null,null,null,null,null,null,null,null,null,null,null,null,null,null,null,null,null,null,null,null,null,null,null,null,null,null,null,null,null,null,null,null,null,null,null,null,null,null,null,null,null,null,null,{"$f":"AZ87*1000","v":0}]
[null,null,null,null,null,null,null,null,null,null,null,null,null,null,null,null,null,null,null,null,null,null,null,null,null,null,null,null,null,null,null,null,null,null,null,null,null,null,null,null,null,null,null,null,null,null,null,null,null,null,null,{"$f":"AZ88*1000","v":0}]
[null,null,null,null,null,null,null,null,null,null,null,null,null,null,null,null,null,null,null,null,null,null,null,null,null,null,null,null,null,null,null,null,null,null,null,null,null,null,null,null,null,null,null,null,null,null,null,null,null,null,null,{"$f":"AZ89*1000","v":0}]
[null,null,null,null,null,null,null,null,null,null,null,null,null,null,null,null,null,null,null,null,null,null,null,null,null,null,null,null,null,null,null,null,null,null,null,null,null,null,null,null,null,null,null,null,null,null,null,null,null,null,null,{"$f":"AZ90*1000","v":0}]
[null,null,null,null,null,null,null,null,null,null,null,null,null,null,null,null,null,null,null,null,null,null,null,null,null,null,null,null,null,null,null,null,null,null,null,null,null,null,null,null,null,null,null,null,null,null,null,null,null,null,null,{"$f":"AZ91*1000","v":0}]
[null,null,null,null,null,null,null,null,null,null,null,null,null,null,null,null,null,null,null,null,null,null,null,null,null,null,null,null,null,null,null,null,null,null,null,null,null,null,null,null,null,null,null,null,null,null,null,null,null,null,null,{"$f":"AZ92*1000","v":0}]
[null,null,null,null,null,null,null,null,null,null,null,null,null,null,null,null,null,null,null,null,null,null,null,null,null,null,null,null,null,null,null,null,null,null,null,null,null,null,null,null,null,null,null,null,null,null,null,null,null,null,null,{"$f":"AZ93*1000","v":0}]
[null,null,null,null,null,null,null,null,null,null,null,null,null,null,null,null,null,null,null,null,null,null,null,null,null,null,null,null,null,null,null,null,null,null,null,null,null,null,null,null,null,null,null,null,null,null,null,null,null,null,null,{"$f":"AZ94*1000","v":0}]
[null,null,null,null,null,null,null,null,null,null,null,null,null,null,null,null,null,null,null,null,null,null,null,null,null,null,null,null,null,null,null,null,null,null,null,null,null,null,null,null,null,null,null,null,null,null,null,null,null,null,null,{"$f":"AZ95*1000","v":0}]
[null,null,null,null,null,null,null,null,null,null,null,null,null,null,null,null,null,null,null,null,null,null,null,null,null,null,null,null,null,null,null,null,null,null,null,null,null,null,null,null,null,null,null,null,null,null,null,null,null,null,null,{"$f":"AZ96*1000","v":0}]
[null,null,null,null,null,null,null,null,null,null,null,null,null,null,null,null,null,null,null,null,null,null,null,null,null,null,null,null,null,null,null,null,null,null,null,null,null,null,null,null,null,null,null,null,null,null,null,null,null,null,null,{"$f":"AZ97*1000","v":0}]
[null,null,null,null,null,null,null,null,null,null,null,null,null,null,null,null,null,null,null,null,null,null,null,null,null,null,null,null,null,null,null,null,null,null,null,null,null,null,null,null,null,null,null,null,null,null,null,null,null,null,null,{"$f":"AZ98*1000","v":0}]
[null,null,null,null,null,null,null,null,null,null,null,null,null,null,null,null,null,null,null,null,null,null,null,null,null,null,null,null,null,null,null,null,null,null,null,null,null,null,null,null,null,null,null,null,null,null,null,null,null,null,null,{"$f":"AZ99*1000","v":0}]
[null,null,null,null,null,null,null,null,null,null,null,null,null,null,null,null,null,null,null,null,null,null,null,null,null,null,null,null,null,null,null,null,null,null,null,null,null,null,null,null,null,null,null,null,null,null,null,null,null,null,null,{"$f":"AZ100*1000","v":0}]
[null,null,null,null,null,null,null,null,null,null,null,null,null,null,null,null,null,null,null,null,null,null,null,null,null,null,null,null,null,null,null,null,null,null,null,null,null,null,null,null,null,null,null,null,null,null,null,null,null,null,null,{"$f":"AZ101*1000","v":0}]
[null,null,null,null,null,null,null,null,null,null,null,null,null,null,null,null,null,null,null,null,null,null,null,null,null,null,null,null,null,null,null,null,null,null,null,null,null,null,null,null,null,null,null,null,null,null,null,null,null,null,null,{"$f":"AZ102*1000","v":0}]
[null,null,null,null,null,null,null,null,null,null,null,null,null,null,null,null,null,null,null,null,null,null,null,null,null,null,null,null,null,null,null,null,null,null,null,null,null,null,null,null,null,null,null,null,null,null,null,null,null,null,null,{"$f":"AZ103*1000","v":0}]
[null,null,null,null,null,null,null,null,null,null,null,null,null,null,null,null,null,null,null,null,null,null,null,null,null,null,null,null,null,null,null,null,null,null,null,null,null,null,null,null,null,null,null,null,null,null,null,null,null,null,null,{"$f":"AZ104*1000","v":0}]
[null,null,null,null,null,null,null,null,null,null,null,null,null,null,null,null,null,null,null,null,null,null,null,null,null,null,null,null,null,null,null,null,null,null,null,null,null,null,null,null,null,null,null,null,null,null,null,null,null,null,null,{"$f":"AZ105*1000","v":0}]
[null,null,null,null,null,null,null,null,null,null,null,null,null,null,null,null,null,null,null,null,null,null,null,null,null,null,null,null,null,null,null,null,null,null,null,null,null,null,null,null,null,null,null,null,null,null,null,null,null,null,null,{"$f":"AZ106*1000","v":0}]
[null,null,null,null,null,null,null,null,null,null,null,null,null,null,null,null,null,null,null,null,null,null,null,null,null,null,null,null,null,null,null,null,null,null,null,null,null,null,null,null,null,null,null,null,null,null,null,null,null,null,null,{"$f":"AZ107*1000","v":0}]
[null,null,null,null,null,null,null,null,null,null,null,null,null,null,null,null,null,null,null,null,null,null,null,null,null,null,null,null,null,null,null,null,null,null,null,null,null,null,null,null,null,null,null,null,null,null,null,null,null,null,null,{"$f":"AZ108*1000","v":0}]
[null,null,null,null,null,null,null,null,null,null,null,null,null,null,null,null,null,null,null,null,null,null,null,null,null,null,null,null,null,null,null,null,null,null,null,null,null,null,null,null,null,null,null,null,null,null,null,null,null,null,null,{"$f":"AZ109*1000","v":0}]
[null,null,null,null,null,null,null,null,null,null,null,null,null,null,null,null,null,null,null,null,null,null,null,null,null,null,null,null,null,null,null,null,null,null,null,null,null,null,null,null,null,null,null,null,null,null,null,null,null,null,null,{"$f":"AZ110*1000","v":0}]
[null,null,null,null,null,null,null,null,null,null,null,null,null,null,null,null,null,null,null,null,null,null,null,null,null,null,null,null,null,null,null,null,null,null,null,null,null,null,null,null,null,null,null,null,null,null,null,null,null,null,null,{"$f":"AZ111*1000","v":0}]
[null,null,null,null,null,null,null,null,null,null,null,null,null,null,null,null,null,null,null,null,null,null,null,null,null,null,null,null,null,null,null,null,null,null,null,null,null,null,null,null,null,null,null,null,null,null,null,null,null,null,null,{"$f":"AZ112*1000","v":0}]
[null,null,null,null,null,null,null,null,null,null,null,null,null,null,null,null,null,null,null,null,null,null,null,null,null,null,null,null,null,null,null,null,null,null,null,null,null,null,null,null,null,null,null,null,null,null,null,null,null,null,null,{"$f":"AZ113*1000","v":0}]
[null,null,null,null,null,null,null,null,null,null,null,null,null,null,null,null,null,null,null,null,null,null,null,null,null,null,null,null,null,null,null,null,null,null,null,null,null,null,null,null,null,null,null,null,null,null,null,null,null,null,null,{"$f":"AZ114*1000","v":0}]
[null,null,null,null,null,null,null,null,null,null,null,null,null,null,null,null,null,null,null,null,null,null,null,null,null,null,null,null,null,null,null,null,null,null,null,null,null,null,null,null,null,null,null,null,null,null,null,null,null,null,null,{"$f":"AZ115*1000","v":0}]
[null,null,null,null,null,null,null,null,null,null,null,null,null,null,null,null,null,null,null,null,null,null,null,null,null,null,null,null,null,null,null,null,null,null,null,null,null,null,null,null,null,null,null,null,null,null,null,null,null,null,null,{"$f":"AZ116*1000","v":0}]
[null,null,null,null,null,null,null,null,null,null,null,null,null,null,null,null,null,null,null,null,null,null,null,null,null,null,null,null,null,null,null,null,null,null,null,null,null,null,null,null,null,null,null,null,null,null,null,null,null,null,null,{"$f":"AZ117*1000","v":0}]
[null,null,null,null,null,null,null,null,null,null,null,null,null,null,null,null,null,null,null,null,null,null,null,null,null,null,null,null,null,null,null,null,null,null,null,null,null,null,null,null,null,null,null,null,null,null,null,null,null,null,null,{"$f":"AZ118*1000","v":0}]
[null,null,null,null,null,null,null,null,null,null,null,null,null,null,null,null,null,null,null,null,null,null,null,null,null,null,null,null,null,null,null,null,null,null,null,null,null,null,null,null,null,null,null,null,null,null,null,null,null,null,null,{"$f":"AZ119*1000","v":0}]
[null,null,null,null,null,null,null,null,null,null,null,null,null,null,null,null,null,null,null,null,null,null,null,null,null,null,null,null,null,null,null,null,null,null,null,null,null,null,null,null,null,null,null,null,null,null,null,null,null,null,null,{"$f":"AZ120*1000","v":0}]
[null,null,null,null,null,null,null,null,null,null,null,null,null,null,null,null,null,null,null,null,null,null,null,null,null,null,null,null,null,null,null,null,null,null,null,null,null,null,null,null,null,null,null,null,null,null,null,null,null,null,null,{"$f":"AZ121*1000","v":0}]
[null,null,null,null,null,null,null,null,null,null,null,null,null,null,null,null,null,null,null,null,null,null,null,null,null,null,null,null,null,null,null,null,null,null,null,null,null,null,null,null,null,null,null,null,null,null,null,null,null,null,null,{"$f":"AZ122*1000","v":0}]
[null,null,null,null,null,null,null,null,null,null,null,null,null,null,null,null,null,null,null,null,null,null,null,null,null,null,null,null,null,null,null,null,null,null,null,null,null,null,null,null,null,null,null,null,null,null,null,null,null,null,null,{"$f":"AZ123*1000","v":0}]
[null,null,null,null,null,null,null,null,null,null,null,null,null,null,null,null,null,null,null,null,null,null,null,null,null,null,null,null,null,null,null,null,null,null,null,null,null,null,null,null,null,null,null,null,null,null,null,null,null,null,null,{"$f":"AZ124*1000","v":0}]
[null,null,null,null,null,null,null,null,null,null,null,null,null,null,null,null,null,null,null,null,null,null,null,null,null,null,null,null,null,null,null,null,null,null,null,null,null,null,null,null,null,null,null,null,null,null,null,null,null,null,null,{"$f":"AZ125*1000","v":0}]
[null,null,null,null,null,null,null,null,null,null,null,null,null,null,null,null,null,null,null,null,null,null,null,null,null,null,null,null,null,null,null,null,null,null,null,null,null,null,null,null,null,null,null,null,null,null,null,null,null,null,null,{"$f":"AZ126*1000","v":0}]
[null,null,null,null,null,null,null,null,null,null,null,null,null,null,null,null,null,null,null,null,null,null,null,null,null,null,null,null,null,null,null,null,null,null,null,null,null,null,null,null,null,null,null,null,null,null,null,null,null,null,null,{"$f":"AZ127*1000","v":0}]
[null,null,null,null,null,null,null,null,null,null,null,null,null,null,null,null,null,null,null,null,null,null,null,null,null,null,null,null,null,null,null,null,null,null,null,null,null,null,null,null,null,null,null,null,null,null,null,null,null,null,null,{"$f":"AZ128*1000","v":0}]
[null,null,null,null,null,null,null,null,null,null,null,null,null,null,null,null,null,null,null,null,null,null,null,null,null,null,null,null,null,null,null,null,null,null,null,null,null,null,null,null,null,null,null,null,null,null,null,null,null,null,null,{"$f":"AZ129*1000","v":0}]
[null,null,null,null,null,null,null,null,null,null,null,null,null,null,null,null,null,null,null,null,null,null,null,null,null,null,null,null,null,null,null,null,null,null,null,null,null,null,null,null,null,null,null,null,null,null,null,null,null,null,null,{"$f":"AZ130*1000","v":0}]
[null,null,null,null,null,null,null,null,null,null,null,null,null,null,null,null,null,null,null,null,null,null,null,null,null,null,null,null,null,null,null,null,null,null,null,null,null,null,null,null,null,null,null,null,null,null,null,null,null,null,null,{"$f":"AZ131*1000","v":0}]
[null,null,null,null,null,null,null,null,null,null,null,null,null,null,null,null,null,null,null,null,null,null,null,null,null,null,null,null,null,null,null,null,null,null,null,null,null,null,null,null,null,null,null,null,null,null,null,null,null,null,null,{"$f":"AZ132*1000","v":0}]
[null,null,null,null,null,null,null,null,null,null,null,null,null,null,null,null,null,null,null,null,null,null,null,null,null,null,null,null,null,null,null,null,null,null,null,null,null,null,null,null,null,null,null,null,null,null,null,null,null,null,null,{"$f":"AZ133*1000","v":0}]
[null,null,null,null,null,null,null,null,null,null,null,null,null,null,null,null,null,null,null,null,null,null,null,null,null,null,null,null,null,null,null,null,null,null,null,null,null,null,null,null,null,null,null,null,null,null,null,null,null,null,null,{"$f":"AZ134*1000","v":0}]
[null,null,null,null,null,null,null,null,null,null,null,null,null,null,null,null,null,null,null,null,null,null,null,null,null,null,null,null,null,null,null,null,null,null,null,null,null,null,null,null,null,null,null,null,null,null,null,null,null,null,null,{"$f":"AZ135*1000","v":0}]
[null,null,null,null,null,null,null,null,null,null,null,null,null,null,null,null,null,null,null,null,null,null,null,null,null,null,null,null,null,null,null,null,null,null,null,null,null,null,null,null,null,null,null,null,null,null,null,null,null,null,null,{"$f":"AZ136*1000","v":0}]
[null,null,null,null,null,null,null,null,null,null,null,null,null,null,null,null,null,null,null,null,null,null,null,null,null,null,null,null,null,null,null,null,null,null,null,null,null,null,null,null,null,null,null,null,null,null,null,null,null,null,null,{"$f":"AZ137*1000","v":0}]
[null,null,null,null,null,null,null,null,null,null,null,null,null,null,null,null,null,null,null,null,null,null,null,null,null,null,null,null,null,null,null,null,null,null,null,null,null,null,null,null,null,null,null,null,null,null,null,null,null,null,null,{"$f":"AZ138*1000","v":0}]
[null,null,null,null,null,null,null,null,null,null,null,null,null,null,null,null,null,null,null,null,null,null,null,null,null,null,null,null,null,null,null,null,null,null,null,null,null,null,null,null,null,null,null,null,null,null,null,null,null,null,null,{"$f":"AZ139*1000","v":0}]
[null,null,null,null,null,null,null,null,null,null,null,null,null,null,null,null,null,null,null,null,null,null,null,null,null,null,null,null,null,null,null,null,null,null,null,null,null,null,null,null,null,null,null,null,null,null,null,null,null,null,null,{"$f":"AZ140*1000","v":0}]
[null,null,null,null,null,null,null,null,null,null,null,null,null,null,null,null,null,null,null,null,null,null,null,null,null,null,null,null,null,null,null,null,null,null,null,null,null,null,null,null,null,null,null,null,null,null,null,null,null,null,null,{"$f":"AZ141*1000","v":0}]
[null,null,null,null,null,null,null,null,null,null,null,null,null,null,null,null,null,null,null,null,null,null,null,null,null,null,null,null,null,null,null,null,null,null,null,null,null,null,null,null,null,null,null,null,null,null,null,null,null,null,null,{"$f":"AZ142*1000","v":0}]
[null,null,null,null,null,null,null,null,null,null,null,null,null,null,null,null,null,null,null,null,null,null,null,null,null,null,null,null,null,null,null,null,null,null,null,null,null,null,null,null,null,null,null,null,null,null,null,null,null,null,null,{"$f":"AZ143*1000","v":0}]
[null,null,null,null,null,null,null,null,null,null,null,null,null,null,null,null,null,null,null,null,null,null,null,null,null,null,null,null,null,null,null,null,null,null,null,null,null,null,null,null,null,null,null,null,null,null,null,null,null,null,null,{"$f":"AZ144*1000","v":0}]
[null,null,null,null,null,null,null,null,null,null,null,null,null,null,null,null,null,null,null,null,null,null,null,null,null,null,null,null,null,null,null,null,null,null,null,null,null,null,null,null,null,null,null,null,null,null,null,null,null,null,null,{"$f":"AZ145*1000","v":0}]
[null,null,null,null,null,null,null,null,null,null,null,null,null,null,null,null,null,null,null,null,null,null,null,null,null,null,null,null,null,null,null,null,null,null,null,null,null,null,null,null,null,null,null,null,null,null,null,null,null,null,null,{"$f":"AZ146*1000","v":0}]
[null,null,null,null,null,null,null,null,null,null,null,null,null,null,null,null,null,null,null,null,null,null,null,null,null,null,null,null,null,null,null,null,null,null,null,null,null,null,null,null,null,null,null,null,null,null,null,null,null,null,null,{"$f":"AZ147*1000","v":0}]
[null,null,null,null,null,null,null,null,null,null,null,null,null,null,null,null,null,null,null,null,null,null,null,null,null,null,null,null,null,null,null,null,null,null,null,null,null,null,null,null,null,null,null,null,null,null,null,null,null,null,null,{"$f":"AZ148*1000","v":0}]
[null,null,null,null,null,null,null,null,null,null,null,null,null,null,null,null,null,null,null,null,null,null,null,null,null,null,null,null,null,null,null,null,null,null,null,null,null,null,null,null,null,null,null,null,null,null,null,null,null,null,null,{"$f":"AZ149*1000","v":0}]
[null,null,null,null,null,null,null,null,null,null,null,null,null,null,null,null,null,null,null,null,null,null,null,null,null,null,null,null,null,null,null,null,null,null,null,null,null,null,null,null,null,null,null,null,null,null,null,null,null,null,null,{"$f":"AZ150*1000","v":0}]
[null,null,null,null,null,null,null,null,null,null,null,null,null,null,null,null,null,null,null,null,null,null,null,null,null,null,null,null,null,null,null,null,null,null,null,null,null,null,null,null,null,null,null,null,null,null,null,null,null,null,null,{"$f":"AZ151*1000","v":0}]
[null,null,null,null,null,null,null,null,null,null,null,null,null,null,null,null,null,null,null,null,null,null,null,null,null,null,null,null,null,null,null,null,null,null,null,null,null,null,null,null,null,null,null,null,null,null,null,null,null,null,null,{"$f":"AZ152*1000","v":0}]
[null,null,null,null,null,null,null,null,null,null,null,null,null,null,null,null,null,null,null,null,null,null,null,null,null,null,null,null,null,null,null,null,null,null,null,null,null,null,null,null,null,null,null,null,null,null,null,null,null,null,null,{"$f":"AZ153*1000","v":0}]
[null,null,null,null,null,null,null,null,null,null,null,null,null,null,null,null,null,null,null,null,null,null,null,null,null,null,null,null,null,null,null,null,null,null,null,null,null,null,null,null,null,null,null,null,null,null,null,null,null,null,null,{"$f":"AZ154*1000","v":0}]
[null,null,null,null,null,null,null,null,null,null,null,null,null,null,null,null,null,null,null,null,null,null,null,null,null,null,null,null,null,null,null,null,null,null,null,null,null,null,null,null,null,null,null,null,null,null,null,null,null,null,null,{"$f":"AZ155*1000","v":0}]
[null,null,null,null,null,null,null,null,null,null,null,null,null,null,null,null,null,null,null,null,null,null,null,null,null,null,null,null,null,null,null,null,null,null,null,null,null,null,null,null,null,null,null,null,null,null,null,null,null,null,null,{"$f":"AZ156*1000","v":0}]
[null,null,null,null,null,null,null,null,null,null,null,null,null,null,null,null,null,null,null,null,null,null,null,null,null,null,null,null,null,null,null,null,null,null,null,null,null,null,null,null,null,null,null,null,null,null,null,null,null,null,null,{"$f":"AZ157*1000","v":0}]
[null,null,null,null,null,null,null,null,null,null,null,null,null,null,null,null,null,null,null,null,null,null,null,null,null,null,null,null,null,null,null,null,null,null,null,null,null,null,null,null,null,null,null,null,null,null,null,null,null,null,null,{"$f":"AZ158*1000","v":0}]
[null,null,null,null,null,null,null,null,null,null,null,null,null,null,null,null,null,null,null,null,null,null,null,null,null,null,null,null,null,null,null,null,null,null,null,null,null,null,null,null,null,null,null,null,null,null,null,null,null,null,null,{"$f":"AZ159*1000","v":0}]
[null,null,null,null,null,null,null,null,null,null,null,null,null,null,null,null,null,null,null,null,null,null,null,null,null,null,null,null,null,null,null,null,null,null,null,null,null,null,null,null,null,null,null,null,null,null,null,null,null,null,null,{"$f":"AZ160*1000","v":0}]
[null,null,null,null,null,null,null,null,null,null,null,null,null,null,null,null,null,null,null,null,null,null,null,null,null,null,null,null,null,null,null,null,null,null,null,null,null,null,null,null,null,null,null,null,null,null,null,null,null,null,null,{"$f":"AZ161*1000","v":0}]
[null,null,null,null,null,null,null,null,null,null,null,null,null,null,null,null,null,null,null,null,null,null,null,null,null,null,null,null,null,null,null,null,null,null,null,null,null,null,null,null,null,null,null,null,null,null,null,null,null,null,null,{"$f":"AZ162*1000","v":0}]
[null,null,null,null,null,null,null,null,null,null,null,null,null,null,null,null,null,null,null,null,null,null,null,null,null,null,null,null,null,null,null,null,null,null,null,null,null,null,null,null,null,null,null,null,null,null,null,null,null,null,null,{"$f":"AZ163*1000","v":0}]
[null,null,null,null,null,null,null,null,null,null,null,null,null,null,null,null,null,null,null,null,null,null,null,null,null,null,null,null,null,null,null,null,null,null,null,null,null,null,null,null,null,null,null,null,null,null,null,null,null,null,null,{"$f":"AZ164*1000","v":0}]
[null,null,null,null,null,null,null,null,null,null,null,null,null,null,null,null,null,null,null,null,null,null,null,null,null,null,null,null,null,null,null,null,null,null,null,null,null,null,null,null,null,null,null,null,null,null,null,null,null,null,null,{"$f":"AZ165*1000","v":0}]
[null,null,null,null,null,null,null,null,null,null,null,null,null,null,null,null,null,null,null,null,null,null,null,null,null,null,null,null,null,null,null,null,null,null,null,null,null,null,null,null,null,null,null,null,null,null,null,null,null,null,null,{"$f":"AZ166*1000","v":0}]
[null,null,null,null,null,null,null,null,null,null,null,null,null,null,null,null,null,null,null,null,null,null,null,null,null,null,null,null,null,null,null,null,null,null,null,null,null,null,null,null,null,null,null,null,null,null,null,null,null,null,null,{"$f":"AZ167*1000","v":0}]
[null,null,null,null,null,null,null,null,null,null,null,null,null,null,null,null,null,null,null,null,null,null,null,null,null,null,null,null,null,null,null,null,null,null,null,null,null,null,null,null,null,null,null,null,null,null,null,null,null,null,null,{"$f":"AZ168*1000","v":0}]
[null,null,null,null,null,null,null,null,null,null,null,null,null,null,null,null,null,null,null,null,null,null,null,null,null,null,null,null,null,null,null,null,null,null,null,null,null,null,null,null,null,null,null,null,null,null,null,null,null,null,null,{"$f":"AZ169*1000","v":0}]
[null,null,null,null,null,null,null,null,null,null,null,null,null,null,null,null,null,null,null,null,null,null,null,null,null,null,null,null,null,null,null,null,null,null,null,null,null,null,null,null,null,null,null,null,null,null,null,null,null,null,null,{"$f":"AZ170*1000","v":0}]
[null,null,null,null,null,null,null,null,null,null,null,null,null,null,null,null,null,null,null,null,null,null,null,null,null,null,null,null,null,null,null,null,null,null,null,null,null,null,null,null,null,null,null,null,null,null,null,null,null,null,null,{"$f":"AZ171*1000","v":0}]
[null,null,null,null,null,null,null,null,null,null,null,null,null,null,null,null,null,null,null,null,null,null,null,null,null,null,null,null,null,null,null,null,null,null,null,null,null,null,null,null,null,null,null,null,null,null,null,null,null,null,null,{"$f":"AZ172*1000","v":0}]
[null,null,null,null,null,null,null,null,null,null,null,null,null,null,null,null,null,null,null,null,null,null,null,null,null,null,null,null,null,null,null,null,null,null,null,null,null,null,null,null,null,null,null,null,null,null,null,null,null,null,null,{"$f":"AZ173*1000","v":0}]
[null,null,null,null,null,null,null,null,null,null,null,null,null,null,null,null,null,null,null,null,null,null,null,null,null,null,null,null,null,null,null,null,null,null,null,null,null,null,null,null,null,null,null,null,null,null,null,null,null,null,null,{"$f":"AZ174*1000","v":0}]
[null,null,null,null,null,null,null,null,null,null,null,null,null,null,null,null,null,null,null,null,null,null,null,null,null,null,null,null,null,null,null,null,null,null,null,null,null,null,null,null,null,null,null,null,null,null,null,null,null,null,null,{"$f":"AZ175*1000","v":0}]
[null,null,null,null,null,null,null,null,null,null,null,null,null,null,null,null,null,null,null,null,null,null,null,null,null,null,null,null,null,null,null,null,null,null,null,null,null,null,null,null,null,null,null,null,null,null,null,null,null,null,null,{"$f":"AZ176*1000","v":0}]
[null,null,null,null,null,null,null,null,null,null,null,null,null,null,null,null,null,null,null,null,null,null,null,null,null,null,null,null,null,null,null,null,null,null,null,null,null,null,null,null,null,null,null,null,null,null,null,null,null,null,null,{"$f":"AZ177*1000","v":0}]
[null,null,null,null,null,null,null,null,null,null,null,null,null,null,null,null,null,null,null,null,null,null,null,null,null,null,null,null,null,null,null,null,null,null,null,null,null,null,null,null,null,null,null,null,null,null,null,null,null,null,null,{"$f":"AZ178*1000","v":0}]
[null,null,null,null,null,null,null,null,null,null,null,null,null,null,null,null,null,null,null,null,null,null,null,null,null,null,null,null,null,null,null,null,null,null,null,null,null,null,null,null,null,null,null,null,null,null,null,null,null,null,null,{"$f":"AZ179*1000","v":0}]
[null,null,null,null,null,null,null,null,null,null,null,null,null,null,null,null,null,null,null,null,null,null,null,null,null,null,null,null,null,null,null,null,null,null,null,null,null,null,null,null,null,null,null,null,null,null,null,null,null,null,null,{"$f":"AZ180*1000","v":0}]
[null,null,null,null,null,null,null,null,null,null,null,null,null,null,null,null,null,null,null,null,null,null,null,null,null,null,null,null,null,null,null,null,null,null,null,null,null,null,null,null,null,null,null,null,null,null,null,null,null,null,null,{"$f":"AZ181*1000","v":0}]
[null,null,null,null,null,null,null,null,null,null,null,null,null,null,null,null,null,null,null,null,null,null,null,null,null,null,null,null,null,null,null,null,null,null,null,null,null,null,null,null,null,null,null,null,null,null,null,null,null,null,null,{"$f":"AZ182*1000","v":0}]
[null,null,null,null,null,null,null,null,null,null,null,null,null,null,null,null,null,null,null,null,null,null,null,null,null,null,null,null,null,null,null,null,null,null,null,null,null,null,null,null,null,null,null,null,null,null,null,null,null,null,null,{"$f":"AZ183*1000","v":0}]
[null,null,null,null,null,null,null,null,null,null,null,null,null,null,null,null,null,null,null,null,null,null,null,null,null,null,null,null,null,null,null,null,null,null,null,null,null,null,null,null,null,null,null,null,null,null,null,null,null,null,null,{"$f":"AZ184*1000","v":0}]
[null,null,null,null,null,null,null,null,null,null,null,null,null,null,null,null,null,null,null,null,null,null,null,null,null,null,null,null,null,null,null,null,null,null,null,null,null,null,null,null,null,null,null,null,null,null,null,null,null,null,null,{"$f":"AZ185*1000","v":0}]
[null,null,null,null,null,null,null,null,null,null,null,null,null,null,null,null,null,null,null,null,null,null,null,null,null,null,null,null,null,null,null,null,null,null,null,null,null,null,null,null,null,null,null,null,null,null,null,null,null,null,null,{"$f":"AZ186*1000","v":0}]
[null,null,null,null,null,null,null,null,null,null,null,null,null,null,null,null,null,null,null,null,null,null,null,null,null,null,null,null,null,null,null,null,null,null,null,null,null,null,null,null,null,null,null,null,null,null,null,null,null,null,null,{"$f":"AZ187*1000","v":0}]
[null,null,null,null,null,null,null,null,null,null,null,null,null,null,null,null,null,null,null,null,null,null,null,null,null,null,null,null,null,null,null,null,null,null,null,null,null,null,null,null,null,null,null,null,null,null,null,null,null,null,null,{"$f":"AZ188*1000","v":0}]
[null,null,null,null,null,null,null,null,null,null,null,null,null,null,null,null,null,null,null,null,null,null,null,null,null,null,null,null,null,null,null,null,null,null,null,null,null,null,null,null,null,null,null,null,null,null,null,null,null,null,null,{"$f":"AZ189*1000","v":0}]
[null,null,null,null,null,null,null,null,null,null,null,null,null,null,null,null,null,null,null,null,null,null,null,null,null,null,null,null,null,null,null,null,null,null,null,null,null,null,null,null,null,null,null,null,null,null,null,null,null,null,null,{"$f":"AZ190*1000","v":0}]
[null,null,null,null,null,null,null,null,null,null,null,null,null,null,null,null,null,null,null,null,null,null,null,null,null,null,null,null,null,null,null,null,null,null,null,null,null,null,null,null,null,null,null,null,null,null,null,null,null,null,null,{"$f":"AZ191*1000","v":0}]
[null,null,null,null,null,null,null,null,null,null,null,null,null,null,null,null,null,null,null,null,null,null,null,null,null,null,null,null,null,null,null,null,null,null,null,null,null,null,null,null,null,null,null,null,null,null,null,null,null,null,null,{"$f":"AZ192*1000","v":0}]
[null,null,null,null,null,null,null,null,null,null,null,null,null,null,null,null,null,null,null,null,null,null,null,null,null,null,null,null,null,null,null,null,null,null,null,null,null,null,null,null,null,null,null,null,null,null,null,null,null,null,null,{"$f":"AZ193*1000","v":0}]
[null,null,null,null,null,null,null,null,null,null,null,null,null,null,null,null,null,null,null,null,null,null,null,null,null,null,null,null,null,null,null,null,null,null,null,null,null,null,null,null,null,null,null,null,null,null,null,null,null,null,null,{"$f":"AZ194*1000","v":0}]
[null,null,null,null,null,null,null,null,null,null,null,null,null,null,null,null,null,null,null,null,null,null,null,null,null,null,null,null,null,null,null,null,null,null,null,null,null,null,null,null,null,null,null,null,null,null,null,null,null,null,null,{"$f":"AZ195*1000","v":0}]
[null,null,null,null,null,null,null,null,null,null,null,null,null,null,null,null,null,null,null,null,null,null,null,null,null,null,null,null,null,null,null,null,null,null,null,null,null,null,null,null,null,null,null,null,null,null,null,null,null,null,null,{"$f":"AZ196*1000","v":0}]
[null,null,null,null,null,null,null,null,null,null,null,null,null,null,null,null,null,null,null,null,null,null,null,null,null,null,null,null,null,null,null,null,null,null,null,null,null,null,null,null,null,null,null,null,null,null,null,null,null,null,null,{"$f":"AZ197*1000","v":0}]
[null,null,null,null,null,null,null,null,null,null,null,null,null,null,null,null,null,null,null,null,null,null,null,null,null,null,null,null,null,null,null,null,null,null,null,null,null,null,null,null,null,null,null,null,null,null,null,null,null,null,null,{"$f":"AZ198*1000","v":0}]
[null,null,null,null,null,null,null,null,null,null,null,null,null,null,null,null,null,null,null,null,null,null,null,null,null,null,null,null,null,null,null,null,null,null,null,null,null,null,null,null,null,null,null,null,null,null,null,null,null,null,null,{"$f":"AZ199*1000","v":0}]
[null,null,null,null,null,null,null,null,null,null,null,null,null,null,null,null,null,null,null,null,null,null,null,null,null,null,null,null,null,null,null,null,null,null,null,null,null,null,null,null,null,null,null,null,null,null,null,null,null,null,null,{"$f":"AZ200*1000","v":0}]
[null,null,null,null,null,null,null,null,null,null,null,null,null,null,null,null,null,null,null,null,null,null,null,null,null,null,null,null,null,null,null,null,null,null,null,null,null,null,null,null,null,null,null,null,null,null,null,null,null,null,null,{"$f":"AZ201*1000","v":0}]
[null,null,null,null,null,null,null,null,null,null,null,null,null,null,null,null,null,null,null,null,null,null,null,null,null,null,null,null,null,null,null,null,null,null,null,null,null,null,null,null,null,null,null,null,null,null,null,null,null,null,null,{"$f":"AZ202*1000","v":0}]
[null,null,null,null,null,null,null,null,null,null,null,null,null,null,null,null,null,null,null,null,null,null,null,null,null,null,null,null,null,null,null,null,null,null,null,null,null,null,null,null,null,null,null,null,null,null,null,null,null,null,null,{"$f":"AZ203*1000","v":0}]
[null,null,null,null,null,null,null,null,null,null,null,null,null,null,null,null,null,null,null,null,null,null,null,null,null,null,null,null,null,null,null,null,null,null,null,null,null,null,null,null,null,null,null,null,null,null,null,null,null,null,null,{"$f":"AZ204*1000","v":0}]
[null,null,null,null,null,null,null,null,null,null,null,null,null,null,null,null,null,null,null,null,null,null,null,null,null,null,null,null,null,null,null,null,null,null,null,null,null,null,null,null,null,null,null,null,null,null,null,null,null,null,null,{"$f":"AZ205*1000","v":0}]
[null,null,null,null,null,null,null,null,null,null,null,null,null,null,null,null,null,null,null,null,null,null,null,null,null,null,null,null,null,null,null,null,null,null,null,null,null,null,null,null,null,null,null,null,null,null,null,null,null,null,null,{"$f":"AZ206*1000","v":0}]
[null,null,null,null,null,null,null,null,null,null,null,null,null,null,null,null,null,null,null,null,null,null,null,null,null,null,null,null,null,null,null,null,null,null,null,null,null,null,null,null,null,null,null,null,null,null,null,null,null,null,null,{"$f":"AZ207*1000","v":0}]
[null,null,null,null,null,null,null,null,null,null,null,null,null,null,null,null,null,null,null,null,null,null,null,null,null,null,null,null,null,null,null,null,null,null,null,null,null,null,null,null,null,null,null,null,null,null,null,null,null,null,null,{"$f":"AZ208*1000","v":0}]
[null,null,null,null,null,null,null,null,null,null,null,null,null,null,null,null,null,null,null,null,null,null,null,null,null,null,null,null,null,null,null,null,null,null,null,null,null,null,null,null,null,null,null,null,null,null,null,null,null,null,null,{"$f":"AZ209*1000","v":0}]
[null,null,null,null,null,null,null,null,null,null,null,null,null,null,null,null,null,null,null,null,null,null,null,null,null,null,null,null,null,null,null,null,null,null,null,null,null,null,null,null,null,null,null,null,null,null,null,null,null,null,null,{"$f":"AZ210*1000","v":0}]
[null,null,null,null,null,null,null,null,null,null,null,null,null,null,null,null,null,null,null,null,null,null,null,null,null,null,null,null,null,null,null,null,null,null,null,null,null,null,null,null,null,null,null,null,null,null,null,null,null,null,null,{"$f":"AZ211*1000","v":0}]
[null,null,null,null,null,null,null,null,null,null,null,null,null,null,null,null,null,null,null,null,null,null,null,null,null,null,null,null,null,null,null,null,null,null,null,null,null,null,null,null,null,null,null,null,null,null,null,null,null,null,null,{"$f":"AZ212*1000","v":0}]
[null,null,null,null,null,null,null,null,null,null,null,null,null,null,null,null,null,null,null,null,null,null,null,null,null,null,null,null,null,null,null,null,null,null,null,null,null,null,null,null,null,null,null,null,null,null,null,null,null,null,null,{"$f":"AZ213*1000","v":0}]
[null,null,null,null,null,null,null,null,null,null,null,null,null,null,null,null,null,null,null,null,null,null,null,null,null,null,null,null,null,null,null,null,null,null,null,null,null,null,null,null,null,null,null,null,null,null,null,null,null,null,null,{"$f":"AZ214*1000","v":0}]
[null,null,null,null,null,null,null,null,null,null,null,null,null,null,null,null,null,null,null,null,null,null,null,null,null,null,null,null,null,null,null,null,null,null,null,null,null,null,null,null,null,null,null,null,null,null,null,null,null,null,null,{"$f":"AZ215*1000","v":0}]
[null,null,null,null,null,null,null,null,null,null,null,null,null,null,null,null,null,null,null,null,null,null,null,null,null,null,null,null,null,null,null,null,null,null,null,null,null,null,null,null,null,null,null,null,null,null,null,null,null,null,null,{"$f":"AZ216*1000","v":0}]
[null,null,null,null,null,null,null,null,null,null,null,null,null,null,null,null,null,null,null,null,null,null,null,null,null,null,null,null,null,null,null,null,null,null,null,null,null,null,null,null,null,null,null,null,null,null,null,null,null,null,null,{"$f":"AZ217*1000","v":0}]
[null,null,null,null,null,null,null,null,null,null,null,null,null,null,null,null,null,null,null,null,null,null,null,null,null,null,null,null,null,null,null,null,null,null,null,null,null,null,null,null,null,null,null,null,null,null,null,null,null,null,null,{"$f":"AZ218*1000","v":0}]
[null,null,null,null,null,null,null,null,null,null,null,null,null,null,null,null,null,null,null,null,null,null,null,null,null,null,null,null,null,null,null,null,null,null,null,null,null,null,null,null,null,null,null,null,null,null,null,null,null,null,null,{"$f":"AZ219*1000","v":0}]
[null,null,null,null,null,null,null,null,null,null,null,null,null,null,null,null,null,null,null,null,null,null,null,null,null,null,null,null,null,null,null,null,null,null,null,null,null,null,null,null,null,null,null,null,null,null,null,null,null,null,null,{"$f":"AZ220*1000","v":0}]
[null,null,null,null,null,null,null,null,null,null,null,null,null,null,null,null,null,null,null,null,null,null,null,null,null,null,null,null,null,null,null,null,null,null,null,null,null,null,null,null,null,null,null,null,null,null,null,null,null,null,null,{"$f":"AZ221*1000","v":0}]
[null,null,null,null,null,null,null,null,null,null,null,null,null,null,null,null,null,null,null,null,null,null,null,null,null,null,null,null,null,null,null,null,null,null,null,null,null,null,null,null,null,null,null,null,null,null,null,null,null,null,null,{"$f":"AZ222*1000","v":0}]
[null,null,null,null,null,null,null,null,null,null,null,null,null,null,null,null,null,null,null,null,null,null,null,null,null,null,null,null,null,null,null,null,null,null,null,null,null,null,null,null,null,null,null,null,null,null,null,null,null,null,null,{"$f":"AZ223*1000","v":0}]
[null,null,null,null,null,null,null,null,null,null,null,null,null,null,null,null,null,null,null,null,null,null,null,null,null,null,null,null,null,null,null,null,null,null,null,null,null,null,null,null,null,null,null,null,null,null,null,null,null,null,null,{"$f":"AZ224*1000","v":0}]
[null,null,null,null,null,null,null,null,null,null,null,null,null,null,null,null,null,null,null,null,null,null,null,null,null,null,null,null,null,null,null,null,null,null,null,null,null,null,null,null,null,null,null,null,null,null,null,null,null,null,null,{"$f":"AZ225*1000","v":0}]
[null,null,null,null,null,null,null,null,null,null,null,null,null,null,null,null,null,null,null,null,null,null,null,null,null,null,null,null,null,null,null,null,null,null,null,null,null,null,null,null,null,null,null,null,null,null,null,null,null,null,null,{"$f":"AZ226*1000","v":0}]
[null,null,null,null,null,null,null,null,null,null,null,null,null,null,null,null,null,null,null,null,null,null,null,null,null,null,null,null,null,null,null,null,null,null,null,null,null,null,null,null,null,null,null,null,null,null,null,null,null,null,null,{"$f":"AZ227*1000","v":0}]
[null,null,null,null,null,null,null,null,null,null,null,null,null,null,null,null,null,null,null,null,null,null,null,null,null,null,null,null,null,null,null,null,null,null,null,null,null,null,null,null,null,null,null,null,null,null,null,null,null,null,null,{"$f":"AZ228*1000","v":0}]
[null,null,null,null,null,null,null,null,null,null,null,null,null,null,null,null,null,null,null,null,null,null,null,null,null,null,null,null,null,null,null,null,null,null,null,null,null,null,null,null,null,null,null,null,null,null,null,null,null,null,null,{"$f":"AZ229*1000","v":0}]
[null,null,null,null,null,null,null,null,null,null,null,null,null,null,null,null,null,null,null,null,null,null,null,null,null,null,null,null,null,null,null,null,null,null,null,null,null,null,null,null,null,null,null,null,null,null,null,null,null,null,null,{"$f":"AZ230*1000","v":0}]
[null,null,null,null,null,null,null,null,null,null,null,null,null,null,null,null,null,null,null,null,null,null,null,null,null,null,null,null,null,null,null,null,null,null,null,null,null,null,null,null,null,null,null,null,null,null,null,null,null,null,null,{"$f":"AZ231*1000","v":0}]
[null,null,null,null,null,null,null,null,null,null,null,null,null,null,null,null,null,null,null,null,null,null,null,null,null,null,null,null,null,null,null,null,null,null,null,null,null,null,null,null,null,null,null,null,null,null,null,null,null,null,null,{"$f":"AZ232*1000","v":0}]
[null,null,null,null,null,null,null,null,null,null,null,null,null,null,null,null,null,null,null,null,null,null,null,null,null,null,null,null,null,null,null,null,null,null,null,null,null,null,null,null,null,null,null,null,null,null,null,null,null,null,null,{"$f":"AZ233*1000","v":0}]
[null,null,null,null,null,null,null,null,null,null,null,null,null,null,null,null,null,null,null,null,null,null,null,null,null,null,null,null,null,null,null,null,null,null,null,null,null,null,null,null,null,null,null,null,null,null,null,null,null,null,null,{"$f":"AZ234*1000","v":0}]
[null,null,null,null,null,null,null,null,null,null,null,null,null,null,null,null,null,null,null,null,null,null,null,null,null,null,null,null,null,null,null,null,null,null,null,null,null,null,null,null,null,null,null,null,null,null,null,null,null,null,null,{"$f":"AZ235*1000","v":0}]
[null,null,null,null,null,null,null,null,null,null,null,null,null,null,null,null,null,null,null,null,null,null,null,null,null,null,null,null,null,null,null,null,null,null,null,null,null,null,null,null,null,null,null,null,null,null,null,null,null,null,null,{"$f":"AZ236*1000","v":0}]
[null,null,null,null,null,null,null,null,null,null,null,null,null,null,null,null,null,null,null,null,null,null,null,null,null,null,null,null,null,null,null,null,null,null,null,null,null,null,null,null,null,null,null,null,null,null,null,null,null,null,null,{"$f":"AZ237*1000","v":0}]
[null,null,null,null,null,null,null,null,null,null,null,null,null,null,null,null,null,null,null,null,null,null,null,null,null,null,null,null,null,null,null,null,null,null,null,null,null,null,null,null,null,null,null,null,null,null,null,null,null,null,null,{"$f":"AZ238*1000","v":0}]
[null,null,null,null,null,null,null,null,null,null,null,null,null,null,null,null,null,null,null,null,null,null,null,null,null,null,null,null,null,null,null,null,null,null,null,null,null,null,null,null,null,null,null,null,null,null,null,null,null,null,null,{"$f":"AZ239*1000","v":0}]
[null,null,null,null,null,null,null,null,null,null,null,null,null,null,null,null,null,null,null,null,null,null,null,null,null,null,null,null,null,null,null,null,null,null,null,null,null,null,null,null,null,null,null,null,null,null,null,null,null,null,null,{"$f":"AZ240*1000","v":0}]
[null,null,null,null,null,null,null,null,null,null,null,null,null,null,null,null,null,null,null,null,null,null,null,null,null,null,null,null,null,null,null,null,null,null,null,null,null,null,null,null,null,null,null,null,null,null,null,null,null,null,null,{"$f":"AZ241*1000","v":0}]
[null,null,null,null,null,null,null,null,null,null,null,null,null,null,null,null,null,null,null,null,null,null,null,null,null,null,null,null,null,null,null,null,null,null,null,null,null,null,null,null,null,null,null,null,null,null,null,null,null,null,null,{"$f":"AZ242*1000","v":0}]
[null,null,null,null,null,null,null,null,null,null,null,null,null,null,null,null,null,null,null,null,null,null,null,null,null,null,null,null,null,null,null,null,null,null,null,null,null,null,null,null,null,null,null,null,null,null,null,null,null,null,null,{"$f":"AZ243*1000","v":0}]
[null,null,null,null,null,null,null,null,null,null,null,null,null,null,null,null,null,null,null,null,null,null,null,null,null,null,null,null,null,null,null,null,null,null,null,null,null,null,null,null,null,null,null,null,null,null,null,null,null,null,null,{"$f":"AZ244*1000","v":0}]
[null,null,null,null,null,null,null,null,null,null,null,null,null,null,null,null,null,null,null,null,null,null,null,null,null,null,null,null,null,null,null,null,null,null,null,null,null,null,null,null,null,null,null,null,null,null,null,null,null,null,null,{"$f":"AZ245*1000","v":0}]
[null,null,null,null,null,null,null,null,null,null,null,null,null,null,null,null,null,null,null,null,null,null,null,null,null,null,null,null,null,null,null,null,null,null,null,null,null,null,null,null,null,null,null,null,null,null,null,null,null,null,null,{"$f":"AZ246*1000","v":0}]
[null,null,null,null,null,null,null,null,null,null,null,null,null,null,null,null,null,null,null,null,null,null,null,null,null,null,null,null,null,null,null,null,null,null,null,null,null,null,null,null,null,null,null,null,null,null,null,null,null,null,null,{"$f":"AZ247*1000","v":0}]
[null,null,null,null,null,null,null,null,null,null,null,null,null,null,null,null,null,null,null,null,null,null,null,null,null,null,null,null,null,null,null,null,null,null,null,null,null,null,null,null,null,null,null,null,null,null,null,null,null,null,null,{"$f":"AZ248*1000","v":0}]
[null,null,null,null,null,null,null,null,null,null,null,null,null,null,null,null,null,null,null,null,null,null,null,null,null,null,null,null,null,null,null,null,null,null,null,null,null,null,null,null,null,null,null,null,null,null,null,null,null,null,null,{"$f":"AZ249*1000","v":0}]
[null,null,null,null,null,null,null,null,null,null,null,null,null,null,null,null,null,null,null,null,null,null,null,null,null,null,null,null,null,null,null,null,null,null,null,null,null,null,null,null,null,null,null,null,null,null,null,null,null,null,null,{"$f":"AZ250*1000","v":0}]
[null,null,null,null,null,null,null,null,null,null,null,null,null,null,null,null,null,null,null,null,null,null,null,null,null,null,null,null,null,null,null,null,null,null,null,null,null,null,null,null,null,null,null,null,null,null,null,null,null,null,null,{"$f":"AZ251*1000","v":0}]
[null,null,null,null,null,null,null,null,null,null,null,null,null,null,null,null,null,null,null,null,null,null,null,null,null,null,null,null,null,null,null,null,null,null,null,null,null,null,null,null,null,null,null,null,null,null,null,null,null,null,null,{"$f":"AZ252*1000","v":0}]
[null,null,null,null,null,null,null,null,null,null,null,null,null,null,null,null,null,null,null,null,null,null,null,null,null,null,null,null,null,null,null,null,null,null,null,null,null,null,null,null,null,null,null,null,null,null,null,null,null,null,null,{"$f":"AZ253*1000","v":0}]
[null,null,null,null,null,null,null,null,null,null,null,null,null,null,null,null,null,null,null,null,null,null,null,null,null,null,null,null,null,null,null,null,null,null,null,null,null,null,null,null,null,null,null,null,null,null,null,null,null,null,null,{"$f":"AZ254*1000","v":0}]
[null,null,null,null,null,null,null,null,null,null,null,null,null,null,null,null,null,null,null,null,null,null,null,null,null,null,null,null,null,null,null,null,null,null,null,null,null,null,null,null,null,null,null,null,null,null,null,null,null,null,null,{"$f":"AZ255*1000","v":0}]
[null,null,null,null,null,null,null,null,null,null,null,null,null,null,null,null,null,null,null,null,null,null,null,null,null,null,null,null,null,null,null,null,null,null,null,null,null,null,null,null,null,null,null,null,null,null,null,null,null,null,null,{"$f":"AZ256*1000","v":0}]
[null,null,null,null,null,null,null,null,null,null,null,null,null,null,null,null,null,null,null,null,null,null,null,null,null,null,null,null,null,null,null,null,null,null,null,null,null,null,null,null,null,null,null,null,null,null,null,null,null,null,null,{"$f":"AZ257*1000","v":0}]
[null,null,null,null,null,null,null,null,null,null,null,null,null,null,null,null,null,null,null,null,null,null,null,null,null,null,null,null,null,null,null,null,null,null,null,null,null,null,null,null,null,null,null,null,null,null,null,null,null,null,null,{"$f":"AZ258*1000","v":0}]
[null,null,null,null,null,null,null,null,null,null,null,null,null,null,null,null,null,null,null,null,null,null,null,null,null,null,null,null,null,null,null,null,null,null,null,null,null,null,null,null,null,null,null,null,null,null,null,null,null,null,null,{"$f":"AZ259*1000","v":0}]
[null,null,null,null,null,null,null,null,null,null,null,null,null,null,null,null,null,null,null,null,null,null,null,null,null,null,null,null,null,null,null,null,null,null,null,null,null,null,null,null,null,null,null,null,null,null,null,null,null,null,null,{"$f":"AZ260*1000","v":0}]
[null,null,null,null,null,null,null,null,null,null,null,null,null,null,null,null,null,null,null,null,null,null,null,null,null,null,null,null,null,null,null,null,null,null,null,null,null,null,null,null,null,null,null,null,null,null,null,null,null,null,null,{"$f":"AZ261*1000","v":0}]
[null,null,null,null,null,null,null,null,null,null,null,null,null,null,null,null,null,null,null,null,null,null,null,null,null,null,null,null,null,null,null,null,null,null,null,null,null,null,null,null,null,null,null,null,null,null,null,null,null,null,null,{"$f":"AZ262*1000","v":0}]
[null,null,null,null,null,null,null,null,null,null,null,null,null,null,null,null,null,null,null,null,null,null,null,null,null,null,null,null,null,null,null,null,null,null,null,null,null,null,null,null,null,null,null,null,null,null,null,null,null,null,null,{"$f":"AZ263*1000","v":0}]
[null,null,null,null,null,null,null,null,null,null,null,null,null,null,null,null,null,null,null,null,null,null,null,null,null,null,null,null,null,null,null,null,null,null,null,null,null,null,null,null,null,null,null,null,null,null,null,null,null,null,null,{"$f":"AZ264*1000","v":0}]
[null,null,null,null,null,null,null,null,null,null,null,null,null,null,null,null,null,null,null,null,null,null,null,null,null,null,null,null,null,null,null,null,null,null,null,null,null,null,null,null,null,null,null,null,null,null,null,null,null,null,null,{"$f":"AZ265*1000","v":0}]
[null,null,null,null,null,null,null,null,null,null,null,null,null,null,null,null,null,null,null,null,null,null,null,null,null,null,null,null,null,null,null,null,null,null,null,null,null,null,null,null,null,null,null,null,null,null,null,null,null,null,null,{"$f":"AZ266*1000","v":0}]
[null,null,null,null,null,null,null,null,null,null,null,null,null,null,null,null,null,null,null,null,null,null,null,null,null,null,null,null,null,null,null,null,null,null,null,null,null,null,null,null,null,null,null,null,null,null,null,null,null,null,null,{"$f":"AZ267*1000","v":0}]
[null,null,null,null,null,null,null,null,null,null,null,null,null,null,null,null,null,null,null,null,null,null,null,null,null,null,null,null,null,null,null,null,null,null,null,null,null,null,null,null,null,null,null,null,null,null,null,null,null,null,null,{"$f":"AZ268*1000","v":0}]
[null,null,null,null,null,null,null,null,null,null,null,null,null,null,null,null,null,null,null,null,null,null,null,null,null,null,null,null,null,null,null,null,null,null,null,null,null,null,null,null,null,null,null,null,null,null,null,null,null,null,null,{"$f":"AZ269*1000","v":0}]
[null,null,null,null,null,null,null,null,null,null,null,null,null,null,null,null,null,null,null,null,null,null,null,null,null,null,null,null,null,null,null,null,null,null,null,null,null,null,null,null,null,null,null,null,null,null,null,null,null,null,null,{"$f":"AZ270*1000","v":0}]
[null,null,null,null,null,null,null,null,null,null,null,null,null,null,null,null,null,null,null,null,null,null,null,null,null,null,null,null,null,null,null,null,null,null,null,null,null,null,null,null,null,null,null,null,null,null,null,null,null,null,null,{"$f":"AZ271*1000","v":0}]
[null,null,null,null,null,null,null,null,null,null,null,null,null,null,null,null,null,null,null,null,null,null,null,null,null,null,null,null,null,null,null,null,null,null,null,null,null,null,null,null,null,null,null,null,null,null,null,null,null,null,null,{"$f":"AZ272*1000","v":0}]
[null,null,null,null,null,null,null,null,null,null,null,null,null,null,null,null,null,null,null,null,null,null,null,null,null,null,null,null,null,null,null,null,null,null,null,null,null,null,null,null,null,null,null,null,null,null,null,null,null,null,null,{"$f":"AZ273*1000","v":0}]
[null,null,null,null,null,null,null,null,null,null,null,null,null,null,null,null,null,null,null,null,null,null,null,null,null,null,null,null,null,null,null,null,null,null,null,null,null,null,null,null,null,null,null,null,null,null,null,null,null,null,null,{"$f":"AZ274*1000","v":0}]
[null,null,null,null,null,null,null,null,null,null,null,null,null,null,null,null,null,null,null,null,null,null,null,null,null,null,null,null,null,null,null,null,null,null,null,null,null,null,null,null,null,null,null,null,null,null,null,null,null,null,null,{"$f":"AZ275*1000","v":0}]
[null,null,null,null,null,null,null,null,null,null,null,null,null,null,null,null,null,null,null,null,null,null,null,null,null,null,null,null,null,null,null,null,null,null,null,null,null,null,null,null,null,null,null,null,null,null,null,null,null,null,null,{"$f":"AZ276*1000","v":0}]
[null,null,null,null,null,null,null,null,null,null,null,null,null,null,null,null,null,null,null,null,null,null,null,null,null,null,null,null,null,null,null,null,null,null,null,null,null,null,null,null,null,null,null,null,null,null,null,null,null,null,null,{"$f":"AZ277*1000","v":0}]
[null,null,null,null,null,null,null,null,null,null,null,null,null,null,null,null,null,null,null,null,null,null,null,null,null,null,null,null,null,null,null,null,null,null,null,null,null,null,null,null,null,null,null,null,null,null,null,null,null,null,null,{"$f":"AZ278*1000","v":0}]
[null,null,null,null,null,null,null,null,null,null,null,null,null,null,null,null,null,null,null,null,null,null,null,null,null,null,null,null,null,null,null,null,null,null,null,null,null,null,null,null,null,null,null,null,null,null,null,null,null,null,null,{"$f":"AZ279*1000","v":0}]
[null,null,null,null,null,null,null,null,null,null,null,null,null,null,null,null,null,null,null,null,null,null,null,null,null,null,null,null,null,null,null,null,null,null,null,null,null,null,null,null,null,null,null,null,null,null,null,null,null,null,null,{"$f":"AZ280*1000","v":0}]
[null,null,null,null,null,null,null,null,null,null,null,null,null,null,null,null,null,null,null,null,null,null,null,null,null,null,null,null,null,null,null,null,null,null,null,null,null,null,null,null,null,null,null,null,null,null,null,null,null,null,null,{"$f":"AZ281*1000","v":0}]
[null,null,null,null,null,null,null,null,null,null,null,null,null,null,null,null,null,null,null,null,null,null,null,null,null,null,null,null,null,null,null,null,null,null,null,null,null,null,null,null,null,null,null,null,null,null,null,null,null,null,null,{"$f":"AZ282*1000","v":0}]
[null,null,null,null,null,null,null,null,null,null,null,null,null,null,null,null,null,null,null,null,null,null,null,null,null,null,null,null,null,null,null,null,null,null,null,null,null,null,null,null,null,null,null,null,null,null,null,null,null,null,null,{"$f":"AZ283*1000","v":0}]
[null,null,null,null,null,null,null,null,null,null,null,null,null,null,null,null,null,null,null,null,null,null,null,null,null,null,null,null,null,null,null,null,null,null,null,null,null,null,null,null,null,null,null,null,null,null,null,null,null,null,null,{"$f":"AZ284*1000","v":0}]
[null,null,null,null,null,null,null,null,null,null,null,null,null,null,null,null,null,null,null,null,null,null,null,null,null,null,null,null,null,null,null,null,null,null,null,null,null,null,null,null,null,null,null,null,null,null,null,null,null,null,null,{"$f":"AZ285*1000","v":0}]
[null,null,null,null,null,null,null,null,null,null,null,null,null,null,null,null,null,null,null,null,null,null,null,null,null,null,null,null,null,null,null,null,null,null,null,null,null,null,null,null,null,null,null,null,null,null,null,null,null,null,null,{"$f":"AZ286*1000","v":0}]
[null,null,null,null,null,null,null,null,null,null,null,null,null,null,null,null,null,null,null,null,null,null,null,null,null,null,null,null,null,null,null,null,null,null,null,null,null,null,null,null,null,null,null,null,null,null,null,null,null,null,null,{"$f":"AZ287*1000","v":0}]
[null,null,null,null,null,null,null,null,null,null,null,null,null,null,null,null,null,null,null,null,null,null,null,null,null,null,null,null,null,null,null,null,null,null,null,null,null,null,null,null,null,null,null,null,null,null,null,null,null,null,null,{"$f":"AZ288*1000","v":0}]
[null,null,null,null,null,null,null,null,null,null,null,null,null,null,null,null,null,null,null,null,null,null,null,null,null,null,null,null,null,null,null,null,null,null,null,null,null,null,null,null,null,null,null,null,null,null,null,null,null,null,null,{"$f":"AZ289*1000","v":0}]
[null,null,null,null,null,null,null,null,null,null,null,null,null,null,null,null,null,null,null,null,null,null,null,null,null,null,null,null,null,null,null,null,null,null,null,null,null,null,null,null,null,null,null,null,null,null,null,null,null,null,null,{"$f":"AZ290*1000","v":0}]
[null,null,null,null,null,null,null,null,null,null,null,null,null,null,null,null,null,null,null,null,null,null,null,null,null,null,null,null,null,null,null,null,null,null,null,null,null,null,null,null,null,null,null,null,null,null,null,null,null,null,null,{"$f":"AZ291*1000","v":0}]
[null,null,null,null,null,null,null,null,null,null,null,null,null,null,null,null,null,null,null,null,null,null,null,null,null,null,null,null,null,null,null,null,null,null,null,null,null,null,null,null,null,null,null,null,null,null,null,null,null,null,null,{"$f":"AZ292*1000","v":0}]
[null,null,null,null,null,null,null,null,null,null,null,null,null,null,null,null,null,null,null,null,null,null,null,null,null,null,null,null,null,null,null,null,null,null,null,null,null,null,null,null,null,null,null,null,null,null,null,null,null,null,null,{"$f":"AZ293*1000","v":0}]
[null,null,null,null,null,null,null,null,null,null,null,null,null,null,null,null,null,null,null,null,null,null,null,null,null,null,null,null,null,null,null,null,null,null,null,null,null,null,null,null,null,null,null,null,null,null,null,null,null,null,null,{"$f":"AZ294*1000","v":0}]
[null,null,null,null,null,null,null,null,null,null,null,null,null,null,null,null,null,null,null,null,null,null,null,null,null,null,null,null,null,null,null,null,null,null,null,null,null,null,null,null,null,null,null,null,null,null,null,null,null,null,null,{"$f":"AZ295*1000","v":0}]
[null,null,null,null,null,null,null,null,null,null,null,null,null,null,null,null,null,null,null,null,null,null,null,null,null,null,null,null,null,null,null,null,null,null,null,null,null,null,null,null,null,null,null,null,null,null,null,null,null,null,null,{"$f":"AZ296*1000","v":0}]
[null,null,null,null,null,null,null,null,null,null,null,null,null,null,null,null,null,null,null,null,null,null,null,null,null,null,null,null,null,null,null,null,null,null,null,null,null,null,null,null,null,null,null,null,null,null,null,null,null,null,null,{"$f":"AZ297*1000","v":0}]
[null,null,null,null,null,null,null,null,null,null,null,null,null,null,null,null,null,null,null,null,null,null,null,null,null,null,null,null,null,null,null,null,null,null,null,null,null,null,null,null,null,null,null,null,null,null,null,null,null,null,null,{"$f":"AZ298*1000","v":0}]
[null,null,null,null,null,null,null,null,null,null,null,null,null,null,null,null,null,null,null,null,null,null,null,null,null,null,null,null,null,null,null,null,null,null,null,null,null,null,null,null,null,null,null,null,null,null,null,null,null,null,null,{"$f":"AZ299*1000","v":0}]
[null,null,null,null,null,null,null,null,null,null,null,null,null,null,null,null,null,null,null,null,null,null,null,null,null,null,null,null,null,null,null,null,null,null,null,null,null,null,null,null,null,null,null,null,null,null,null,null,null,null,null,{"$f":"AZ300*1000","v":0}]
[null,null,null,null,null,null,null,null,null,null,null,null,null,null,null,null,null,null,null,null,null,null,null,null,null,null,null,null,null,null,null,null,null,null,null,null,null,null,null,null,null,null,null,null,null,null,null,null,null,null,null,{"$f":"AZ301*1000","v":0}]
[null,null,null,null,null,null,null,null,null,null,null,null,null,null,null,null,null,null,null,null,null,null,null,null,null,null,null,null,null,null,null,null,null,null,null,null,null,null,null,null,null,null,null,null,null,null,null,null,null,null,null,{"$f":"AZ302*1000","v":0}]
[null,null,null,null,null,null,null,null,null,null,null,null,null,null,null,null,null,null,null,null,null,null,null,null,null,null,null,null,null,null,null,null,null,null,null,null,null,null,null,null,null,null,null,null,null,null,null,null,null,null,null,{"$f":"AZ303*1000","v":0}]
[null,null,null,null,null,null,null,null,null,null,null,null,null,null,null,null,null,null,null,null,null,null,null,null,null,null,null,null,null,null,null,null,null,null,null,null,null,null,null,null,null,null,null,null,null,null,null,null,null,null,null,{"$f":"AZ304*1000","v":0}]
[null,null,null,null,null,null,null,null,null,null,null,null,null,null,null,null,null,null,null,null,null,null,null,null,null,null,null,null,null,null,null,null,null,null,null,null,null,null,null,null,null,null,null,null,null,null,null,null,null,null,null,{"$f":"AZ305*1000","v":0}]
[null,null,null,null,null,null,null,null,null,null,null,null,null,null,null,null,null,null,null,null,null,null,null,null,null,null,null,null,null,null,null,null,null,null,null,null,null,null,null,null,null,null,null,null,null,null,null,null,null,null,null,{"$f":"AZ306*1000","v":0}]
[null,null,null,null,null,null,null,null,null,null,null,null,null,null,null,null,null,null,null,null,null,null,null,null,null,null,null,null,null,null,null,null,null,null,null,null,null,null,null,null,null,null,null,null,null,null,null,null,null,null,null,{"$f":"AZ307*1000","v":0}]
[null,null,null,null,null,null,null,null,null,null,null,null,null,null,null,null,null,null,null,null,null,null,null,null,null,null,null,null,null,null,null,null,null,null,null,null,null,null,null,null,null,null,null,null,null,null,null,null,null,null,null,{"$f":"AZ308*1000","v":0}]
[null,null,null,null,null,null,null,null,null,null,null,null,null,null,null,null,null,null,null,null,null,null,null,null,null,null,null,null,null,null,null,null,null,null,null,null,null,null,null,null,null,null,null,null,null,null,null,null,null,null,null,{"$f":"AZ309*1000","v":0}]
[null,null,null,null,null,null,null,null,null,null,null,null,null,null,null,null,null,null,null,null,null,null,null,null,null,null,null,null,null,null,null,null,null,null,null,null,null,null,null,null,null,null,null,null,null,null,null,null,null,null,null,{"$f":"AZ310*1000","v":0}]
[null,null,null,null,null,null,null,null,null,null,null,null,null,null,null,null,null,null,null,null,null,null,null,null,null,null,null,null,null,null,null,null,null,null,null,null,null,null,null,null,null,null,null,null,null,null,null,null,null,null,null,{"$f":"AZ311*1000","v":0}]
[null,null,null,null,null,null,null,null,null,null,null,null,null,null,null,null,null,null,null,null,null,null,null,null,null,null,null,null,null,null,null,null,null,null,null,null,null,null,null,null,null,null,null,null,null,null,null,null,null,null,null,{"$f":"AZ312*1000","v":0}]
[null,null,null,null,null,null,null,null,null,null,null,null,null,null,null,null,null,null,null,null,null,null,null,null,null,null,null,null,null,null,null,null,null,null,null,null,null,null,null,null,null,null,null,null,null,null,null,null,null,null,null,{"$f":"AZ313*1000","v":0}]
[null,null,null,null,null,null,null,null,null,null,null,null,null,null,null,null,null,null,null,null,null,null,null,null,null,null,null,null,null,null,null,null,null,null,null,null,null,null,null,null,null,null,null,null,null,null,null,null,null,null,null,{"$f":"AZ314*1000","v":0}]
[null,null,null,null,null,null,null,null,null,null,null,null,null,null,null,null,null,null,null,null,null,null,null,null,null,null,null,null,null,null,null,null,null,null,null,null,null,null,null,null,null,null,null,null,null,null,null,null,null,null,null,{"$f":"AZ315*1000","v":0}]
[null,null,null,null,null,null,null,null,null,null,null,null,null,null,null,null,null,null,null,null,null,null,null,null,null,null,null,null,null,null,null,null,null,null,null,null,null,null,null,null,null,null,null,null,null,null,null,null,null,null,null,{"$f":"AZ316*1000","v":0}]
[null,null,null,null,null,null,null,null,null,null,null,null,null,null,null,null,null,null,null,null,null,null,null,null,null,null,null,null,null,null,null,null,null,null,null,null,null,null,null,null,null,null,null,null,null,null,null,null,null,null,null,{"$f":"AZ317*1000","v":0}]
[null,null,null,null,null,null,null,null,null,null,null,null,null,null,null,null,null,null,null,null,null,null,null,null,null,null,null,null,null,null,null,null,null,null,null,null,null,null,null,null,null,null,null,null,null,null,null,null,null,null,null,{"$f":"AZ318*1000","v":0}]
[null,null,null,null,null,null,null,null,null,null,null,null,null,null,null,null,null,null,null,null,null,null,null,null,null,null,null,null,null,null,null,null,null,null,null,null,null,null,null,null,null,null,null,null,null,null,null,null,null,null,null,{"$f":"AZ319*1000","v":0}]
[null,null,null,null,null,null,null,null,null,null,null,null,null,null,null,null,null,null,null,null,null,null,null,null,null,null,null,null,null,null,null,null,null,null,null,null,null,null,null,null,null,null,null,null,null,null,null,null,null,null,null,{"$f":"AZ320*1000","v":0}]
[null,null,null,null,null,null,null,null,null,null,null,null,null,null,null,null,null,null,null,null,null,null,null,null,null,null,null,null,null,null,null,null,null,null,null,null,null,null,null,null,null,null,null,null,null,null,null,null,null,null,null,{"$f":"AZ321*1000","v":0}]
[null,null,null,null,null,null,null,null,null,null,null,null,null,null,null,null,null,null,null,null,null,null,null,null,null,null,null,null,null,null,null,null,null,null,null,null,null,null,null,null,null,null,null,null,null,null,null,null,null,null,null,{"$f":"AZ322*1000","v":0}]
[null,null,null,null,null,null,null,null,null,null,null,null,null,null,null,null,null,null,null,null,null,null,null,null,null,null,null,null,null,null,null,null,null,null,null,null,null,null,null,null,null,null,null,null,null,null,null,null,null,null,null,{"$f":"AZ323*1000","v":0}]
[null,null,null,null,null,null,null,null,null,null,null,null,null,null,null,null,null,null,null,null,null,null,null,null,null,null,null,null,null,null,null,null,null,null,null,null,null,null,null,null,null,null,null,null,null,null,null,null,null,null,null,{"$f":"AZ324*1000","v":0}]
[null,null,null,null,null,null,null,null,null,null,null,null,null,null,null,null,null,null,null,null,null,null,null,null,null,null,null,null,null,null,null,null,null,null,null,null,null,null,null,null,null,null,null,null,null,null,null,null,null,null,null,{"$f":"AZ325*1000","v":0}]
[null,null,null,null,null,null,null,null,null,null,null,null,null,null,null,null,null,null,null,null,null,null,null,null,null,null,null,null,null,null,null,null,null,null,null,null,null,null,null,null,null,null,null,null,null,null,null,null,null,null,null,{"$f":"AZ326*1000","v":0}]
[null,null,null,null,null,null,null,null,null,null,null,null,null,null,null,null,null,null,null,null,null,null,null,null,null,null,null,null,null,null,null,null,null,null,null,null,null,null,null,null,null,null,null,null,null,null,null,null,null,null,null,{"$f":"AZ327*1000","v":0}]
[null,null,null,null,null,null,null,null,null,null,null,null,null,null,null,null,null,null,null,null,null,null,null,null,null,null,null,null,null,null,null,null,null,null,null,null,null,null,null,null,null,null,null,null,null,null,null,null,null,null,null,{"$f":"AZ328*1000","v":0}]
[null,null,null,null,null,null,null,null,null,null,null,null,null,null,null,null,null,null,null,null,null,null,null,null,null,null,null,null,null,null,null,null,null,null,null,null,null,null,null,null,null,null,null,null,null,null,null,null,null,null,null,{"$f":"AZ329*1000","v":0}]
[null,null,null,null,null,null,null,null,null,null,null,null,null,null,null,null,null,null,null,null,null,null,null,null,null,null,null,null,null,null,null,null,null,null,null,null,null,null,null,null,null,null,null,null,null,null,null,null,null,null,null,{"$f":"AZ330*1000","v":0}]
[null,null,null,null,null,null,null,null,null,null,null,null,null,null,null,null,null,null,null,null,null,null,null,null,null,null,null,null,null,null,null,null,null,null,null,null,null,null,null,null,null,null,null,null,null,null,null,null,null,null,null,{"$f":"AZ331*1000","v":0}]

{"sheet":"додаток","index":2,"n_rows":40,"n_cols":6,"rows_kept":40,"cut":false,"hidden":false,"merged":[[30,0,30,1],[0,0,0,4],[2,0,3,0],[2,1,3,1],[2,2,2,4],[4,0,29,0]]}
["Додаток до Паспорту фізико-хімічних показників природного газу № 656"]
[]
["Область","ГРС, прямий споживач","Cередньозважене значення вищої теплоти згоряння"]
[null,null," МДж/м³","ккал/м³","кВт*год./м³"]
["Херсонська  область","ГРС-1 Херсон",38.450000000000003,9184,10.68]
[null,"ГРС-2 Херсон",0,0,0]
[null,"ГРС Белозірка",38.450000000000003,9184,10.68]
[null,"ГРС Станіслав ",38.450000000000003,9183,10.68]
[null,"ГРС Східне",38.43,9178,10.67]
[null,"ГРС Садове",38.450000000000003,9184,10.68]
[null,"ГРС Цюрупинск",38.46,9186,10.68]
[null,"ГРС Виноградове",38.450000000000003,9184,10.68]
[null,"ГРС Нова Маячка",38.450000000000003,9183,10.68]
[null,"ГРС Обривки",0,0,0]
[null,"ГРС Нова Каховка",38.44,9182,10.68]
[null,"ГРС  Каховка (Лінія Каховка)",38.44,9182,10.68]
[null,"ГРС Каховка (лІнія Коробки)",0,0,0]
[null,"ГРС Раздольне ",38.46,9185,10.68]
[null,"ГРС Брилівка",38.450000000000003,9183,10.68]
[null,"ГРС Каланчак ",38.44,9182,10.68]
[null,"ГРС Скадовськ",38.450000000000003,9183,10.68]
[null,"ГРС Новоолександрівка",38.450000000000003,9183,10.68]
[null,"ГРС Чаплинка",38.450000000000003,9183,10.68]
[null,"ГРС Хрестівка",38.450000000000003,9183,10.68]
[null,"ГРС Асканія Нова",0,0,0]
[null,"ГРС Асканія Нова (Тавричанка)",38.44,9182,10.68]
[null,"ГРС Червоний Чабан",38.44,9182,10.68]
[null,"ТОВ \" РИТЕЙЛ - КР\"",38.450000000000003,9183,10.68]
[null,"РВУ \" ХАРКІВАВТОГАЗ\"",38.44,9182,10.68]
[null,"ТОВ\"ТЕК\" ІТЕРА\"",38.450000000000003,9184,10.68]
["Середньозважене значення вищої теплоти згоряння по маршруту № 656",null,38.450000000000003,9184,10.68]
[]
[]
[]
["Начальника управління Херсонського ЛВУМГ                                        Доскоч М.В.                                                                      ",null,null,null,null,"2017-06-01"]
["Підрозділу підприємства, якому підпорядкована лабораторія",null,null,"прізвище","підпис","дата"]
["Завідувач лабораторії                                                                                     Камишанова О.С.                                                                                                   ",null,null,null,null,"2017-06-01"]
["Лабораторія, де здійснювалось вимірювання газу",null,null,"прізвище","підпис","дата"]
["Начальник  служби ГВ та М                                                                            Скавронський Є.К. ",null,null,null,null,"2017-06-01"]
["Підрозділу, відповідального за облік газу за маршрутом",null,null,"прізвище","підпис","дата"]

{"sheet":"variablesList","index":3,"n_rows":3,"n_cols":4,"rows_kept":3,"cut":false,"hidden":true,"merged":[]}
[3,"x:\\gaysin","10, 11, 24, 25, 127, 128, 132, 180, 207, 215","x:\\"]
[null,"x:\\Illinci"]
[null,"x:\\Talne"]